Workbook

Sheet Formler
A1: Ansættelsesbrøk på denne timeseddel | B1: 7
A2: Aktuelt timetal pr. uge | B2: =B1*5 -> 35
C3: Ændringer i timetal, kun ændring af ansættelsesbrøk i felt B1
C4: Ved ændringer af formler markér med note eller andet så det er synligt hvor der mangler.
A5: Månedsløn 1/10-19
A6: Månedsløn 1/4-2020 | G6: OBS Skabelon lægger fortsat 2,08 til feriesaldo hver måned
A7: Aktuel timeløn | B7: =B5/(B2*B16) -> 0
A9: Aftenstillæg pr. time (17-23) | B9: 28.14 | G9: Ændring af månedsløn, stillingstillæg,
A10: Lørdagstillæg pr. time (11-23) | B10: 33.41 | G10: funktionstillæg, kvalifikationstillæg og grundtillæg
A11: Uniformsgodtgørelse pr. timetal på måned | B11: 1.84 | C11: Grundløb pr. 31/3-2000 = 2550 | G11: Åbn det månedsark som skal tilrettes.
A12: Kostfradrag | G12: Ret feltet i den aktuelle måned. De efterfølgende ark vil bruge den nye værdi.
A13: - 31 timer og over | B13: 300 | G13: Tilføjfe note om ændring
A14: - Mellem 21 og 30 timer | B14: 225
A15: - 20 timer og under | B15: 150
A16: Timefaktor | B16: 4.333243243 | G16: Ændring af kostfradrag ved ferie fri osv.
A17: Helligdag/feriefri/omsorgsdag/seniordag
A18: - 37 timer | B18: 7.4 | G18: Ændring af helligdags/ferie værdier. Evt. synligt felt med tallet og regnestykket bag.
A19: - 32 timer | B19: 6.4 | G19: Guide til Syg
A20: - 30 timer | B20: 6 | G20: AFS nat, Oppe
A21: - 25 timer | B21: 5
A22: Timetal pr. uge | G22: Feriesaldo
A23: 37 timer | B23: 160.33 | G23: Indsæt nuværende saldo i ark Oktober (eller anden måned)
A24: 32 timer | B24: 138.66
A25: 30 timer | B25: 129.99
A26: 25 timer | B26: 108.33
A27: 20 timer | B27: 86.66
A28: Sundhedsforsikring | B28: 45.39
A29: Fradrag gavekasse | B29: 50

Sheet Guide til brug
A2: Vi har forsøgt at lave en brugsvejledning til de ny timesedler. Den står nedenunder.
A3: Hvis i ikke kan finde svaret på jeres spørgsmål, eller ikke forstår hvor tallene kommer må i gerne tage fat i Gitte Bak eller Andreas.
A7: Størstedelen af felterne er låst, så i kun kan tilføje data i de relevante felter.
A9: I felterne Mødt og Gået angives klokkeslæt.
A10: Fordi excel er meget firkantet kan man ikke bare indtaste 08 og 16.
A11: I stedet skal der indtastes 08:00 og 16:00 - husk kolon :
A12: Derefter beregner arket selv diverse tillæg, saldoer, timetal osv. | O12: Rettelser d. 24/9-19 | W12: Mangler:
O13: Absolutte referencer i kol J, September!S1 | W13: Mangler rettelse i Feriesaldo.
A14: Når socialfagligtpersonale har aftenvagt og derfor sover i huset, skal dette angives ved at skrive "ja" i kolonne I, AFS nat. (Kolonne M) | O14: Kolonner Timer, Helligdag, Aften, Lørdag til kolonnebredde 5 | W14: Vejledning til brug af de forskellige felter
A15: Hvis man i løbet af natten står op, angives dette i kolonne N, Oppe. | O15: Kolonner AFS Nat, oppe kolonnebredde 4 | W15: Forklaring på aften fra saldo
A16: Hvis man har været oppe én gang, skrives 1. Læg derefter til for hver begyndte time.
O17: Rettelser d. 25/9-19
A18: Hvis man er syg, angives hvor mange timer man skulle have været på arbejde. | O18: Rettelser i dato, måned, år
A19: Ved kursus gives det antal timer kurset har taget. | O19: Timetal d.m. medtager ikke længere søndags og helligdagstimer. Begge flyttet til rigtige felt.
O20: Kolonnebredde på L, så timer i alt vises korrekt i bunden af arket.
A21: Ved ferie/fri dage og omsorgs, eller seniordage angives ansættelsesbrøkken, som er timetal man er ansæt til om ugen, divideret med 5.
A22: Hvis man er ansat 37 t/u er ansættelsesbrøkken 37/5= 7,4 | O22: Retterlser d. 30-09-2019
A23: For 35 timer: 35/5 = 7 | O23: Sætter selv 5 ferie/fridage på saldo i Maj.
A24: For 32 timer: 32/5= 6,4 | O24: Feriesaldo - fungerer som ferie/fri, oms. Osv. ift. brug. Lægger selv 2,08 til pr. måned.
A25: For 30 timer: 30/5 = 6
A26: For 25 timer: 25/5 = 5 | O26: Rettelser d. 15-10-2019
O27: AFS nat i Oktober rettet
O28: Kost i September rettet
A29: Ekstra timer benyttes hovedsagligt af service og køkkengruppen og bostøtte. | O29: Ferie saldo rette så ikke +2,08.

Sheet Helligdagsberegning (hidden)
A1: Årstal | B1: 2020 | D1: Type | H1: X | I1: Årstal | J1: =B1 -> 2020
A2: Nytårsdag | B2: =DATE(B1,1,1) -> 2020-01-01 | D2: Fast | H2: A | I2: Rest | J2: =MOD(År,19) -> 6
A3: Skærtorsdag | B3: =L22 -> 2020-04-09 | D3: Beregnet | H3: B | I3: Heltal | J3: =INT(År/100) -> 20
A4: Langfredag | B4: =L23 -> 2020-04-10 | D4: Beregnet | H4: C | I4: Rest | J4: =MOD(År,100) -> 20
A5: Påskedag | B5: =L24 -> 2020-04-12 | D5: Beregnet | H5: D | I5: Heltal | J5: =INT(J3/4) -> 5
A6: 2. påskedag | B6: =L25 -> 2020-04-13 | D6: Beregnet | H6: E | I6: Rest | J6: =MOD(J3,4) -> 0
A7: Store Bededag | B7: =L29 -> 2020-05-08 | D7: Beregnet | H7: F | I7: Heltal | J7: =INT((J3+8)/25) -> 1
A8: Kristi Himmelfart | B8: =L32 -> 2020-05-21 | D8: Beregnet | H8: G | I8: Heltal | J8: =INT((J3-J7+1)/3) -> 6
A9: Pinsedag | B9: =L34 -> 2020-05-31 | D9: Beregnet | H9: H | I9: Heltal | J9: =MOD(19*J2+J3-J5-J8+15,30) -> 18
A10: 2. pinsedag | B10: =L35 -> 2020-06-01 | D10: Beregnet | H10: J | I10: Heltal | J10: =INT(J4/4) -> 5
A11: Grundlovsdag | B11: =DATE(B1,6,5) -> 2020-06-05 | D11: Fast | H11: K | I11: Rest | J11: =MOD(J4,4) -> 0
A12: Juleaften | B12: =DATE(B1,12,24) -> 2020-12-24 | D12: Fast | H12: L | I12: Rest | J12: =MOD(32+2*J6+2*J10-J9-J11,7) -> 3
A13: 1. juledag | B13: =B12+1 -> 2020-12-25 | D13: Fast | H13: M | I13: Heltal | J13: =INT((J2+11*J9+22*J12)/451) -> 0
A14: 2. juledag | B14: =B12+2 -> 2020-12-26 | D14: Fast | H14: N | I14: Heltal | J14: =INT((J9+J12-7*J13+114)/31) -> 4
A15: Nytårsaftens dag | B15: =DATE(B1,12,31) -> 2020-12-31 | D15: Fast | H15: P | I15: Rest | J15: =MOD(J9+J12-7*J13+114,31) -> 11
A16: 1. Maj | B16: =DATE(B1,5,1) -> 2020-05-01 | D16: Fast | H16: Q | I16: Formel | J16: =(J14-3)*31+J15-20 -> 22
I18: Dag | J18: =J15+1 -> 12
I19: Måned | J19: =J14 -> 4
K21: Mellemregning | M21: Diff ift Påskesøndag
I22: Skærtorsdag | K22: =K24-3 -> 2020-04-09 | L22: =L24-3 -> 2020-04-09 | M22: -3
I23: Langfredag | K23: =K24-2 -> 2020-04-10 | L23: =L24-2 -> 2020-04-10 | M23: -2
I24: Påskedag | K24: =DATE(År,J19,J18) -> 2020-04-12 | L24: =DATE(År,J19,J18) -> 2020-04-12
I25: 2. påskedag | K25: =K24+1 -> 2020-04-13 | L25: =L24+1 -> 2020-04-13 | M25: 1
I26: 1. s.e. påske | K26: =K24+7 -> 2020-04-19
I27: 2. s.e. påske | K27: =K26+7 -> 2020-04-26
I28: 3. s.e. påske | K28: =K27+7 -> 2020-05-03
I29: Store Bededag | K29: =K28+5 -> 2020-05-08 | L29: =L24+26 -> 2020-05-08 | M29: 26
I30: 4. s.e. påske | K30: =K28+7 -> 2020-05-10
I31: 5. s.e. påske | K31: =K30+7 -> 2020-05-17
I32: Kristi Himmelfart | K32: =K31+4 -> 2020-05-21 | L32: =L24+39 -> 2020-05-21 | M32: 39
I33: 6.s.e. påske | K33: =K31+7 -> 2020-05-24
I34: Pinsedag | K34: =K33+7 -> 2020-05-31 | L34: =L24+49 -> 2020-05-31 | M34: 49
I35: 2. pinsedag | K35: =K34+1 -> 2020-06-01 | L35: =L24+50 -> 2020-06-01 | M35: 50

Sheet Oktober
G1: AFS Nat: | I1: 6 | K1: Hvis haft nat, skriv ja i kolonnen. | R1: Aften: | U1: 17:00:00 | W1: Lørdag | X1: 11:00:00 | Y1: 23:00:00
W2: Søn/hellig | X2: 07:00:00 | Y2: 23:00:00
A3: Lønberegning: | D3: Navn: | E3: Poul Prøvesen | M3: Måned: | O3: Oktober | R3: År: | S3: 2019
C4: Helligd. | D4: Dato | E4: Mødt | F4: Gået | G4: Timer | H4: Hellig | I4: Nat | J4: Aften | K4: Lørdag | L4: Søndag | M4: AFS | N4: Op- | O4: Syg | P4: Ferie | Q4: Kur- | R4: Ferie | S4: Oms. | T4: Ekstra | U4: Bemærkning
A5: Månedsløn | B5: 99000 | E5: kl. | F5: kl. | H5: dag | J5: 17-23 | K5: 11-23 | L5: 7-23 | M5: nat | N5: pe | P5: timer | Q5: sus | R5: Fri | S5: senior | T5: timer
D6: 2019-10-01 | G6: =(IF(AND(E6>0,F6>0),HOUR(F6-E6)+MINUTE(F6-E6)/60," ")) ->  | H6: =IF(C6="ja",IF(G6=" ",Formler!$B$1,G6*1.5)," ") ->  | J6: =IF(F6>$U$1,HOUR(F6-$U$1)+MINUTE(F6-$U$1)/60," ") ->  | K6: =IF(WEEKDAY(D6,2)=6,IF(F6>$X$1,(HOUR(F6-$X$1)+MINUTE(F6-$X$1)/60)," ")," ") ->  | L6: =IF(WEEKDAY(D6,2)=7,IF(E6>0,(HOUR(F6-E6)+MINUTE(F6-E6)/60)/2," ")," ") ->  | M6: =IF(I6="ja",(IF(N6>=0,$I$1-(N6*0.75),$V$5+0))," ") -> 
A7: Stillingstillæg | B7: 10 | D7: 2019-10-02 | H7: =IF(C7="ja",IF(G7=" ",Formler!$B$1,G7*1.5)," ") ->  | J7: =IF(F7>$U$1,HOUR(F7-$U$1)+MINUTE(F7-$U$1)/60," ") ->  | K7: =IF(WEEKDAY(D7,2)=6,IF(F7>$X$1,(HOUR(F7-$X$1)+MINUTE(F7-$X$1)/60)," ")," ") ->  | L7: =IF(WEEKDAY(D7,2)=7,IF(E7>0,(HOUR(F7-E7)+MINUTE(F7-E7)/60)/2," ")," ") ->  | M7: =IF(I7="ja",(IF(N7>=0,$I$1-(N7*0.75),$V$5+0))," ") -> 
D8: 2019-10-03 | H8: =IF(C8="ja",IF(G8=" ",Formler!$B$1,G8*1.5)," ") -> 
A9: Funktionstillæg | B9: 10 | D9: 2019-10-04 | H9: =IF(C9="ja",IF(G9=" ",Formler!$B$1,G9*1.5)," ") -> 
D10: 2019-10-05 | H10: =IF(C10="ja",IF(G10=" ",Formler!$B$1,G10*1.5)," ") -> 
A11: Kvallifikationstillæg | B11: 10 | D11: 2019-10-06 | H11: =IF(C11="ja",IF(G11=" ",Formler!$B$1,G11*1.5)," ") ->  | L11: =IF(WEEKDAY(D11,2)=7,IF(E11>0,(HOUR(F11-E11)+MINUTE(F11-E11)/60)/2," ")," ") -> 
D12: 2019-10-07 | H12: =IF(C12="ja",IF(G12=" ",Formler!$B$1,G12*1.5)," ") ->  | X12: Guide til Ferie, Ferie/fridage, Senior, omsorgsdage.
A13: Grundtillæg | B13: 10 | D13: 2019-10-08 | H13: =IF(C13="ja",IF(G13=" ",Formler!$B$1,G13*1.5)," ") -> 
D14: 2019-10-09 | H14: =IF(C14="ja",IF(G14=" ",Formler!$B$1,G14*1.5)," ") ->  | X14: Guide til Syg
A15: Ekstra timer _____ | B15: =T37*Formler!B7 -> 0 | D15: 2019-10-10 | H15: =IF(C15="ja",IF(G15=" ",Formler!$B$1,G15*1.5)," ") ->  | X15: AFS nat, Oppe
D16: 2019-10-11 | H16: =IF(C16="ja",IF(G16=" ",Formler!$B$1,G16*1.5)," ") -> 
A17: Aftentillæg | B17: =+J37*Formler!B9 -> 0 | D17: 2019-10-12 | H17: =IF(C17="ja",IF(G17=" ",Formler!$B$1,G17*1.5)," ") ->  | X17: Fradragsfelt, kørsel, multimedie, bagvagt og ekstra timer | Z17: ,
D18: 2019-10-13 | H18: =IF(C18="ja",IF(G18=" ",Formler!$B$1,G18*1.5)," ") -> 
A19: Lørdagstillæg | B19: =+K37*Formler!B10 -> 0 | D19: 2019-10-14 | H19: =IF(C19="ja",IF(G19=" ",Formler!$B$1,G19*1.5)," ") -> 
D20: 2019-10-15 | H20: =IF(C20="ja",IF(G20=" ",Formler!$B$1,G20*1.5)," ") -> 
A21: Fradrag | D21: 2019-10-16 | H21: =IF(C21="ja",IF(G21=" ",Formler!$B$1,G21*1.5)," ") -> 
D22: 2019-10-17 | H22: =IF(C22="ja",IF(G22=" ",Formler!$B$1,G22*1.5)," ") -> 
A23: Uniformsgodtgørelse | B23: =P38*Formler!B11 -> 279.0608648 | D23: 2019-10-18 | H23: =IF(C23="ja",IF(G23=" ",Formler!$B$1,G23*1.5)," ") -> 
D24: 2019-10-19 | H24: =IF(C24="ja",IF(G24=" ",Formler!$B$1,G24*1.5)," ") -> 
A25: Sundhedsforsikring | B25: =Formler!B28 -> 45.39 | D25: 2019-10-20 | H25: =IF(C25="ja",IF(G25=" ",Formler!$B$1,G25*1.5)," ") -> 
D26: 2019-10-21 | H26: =IF(C26="ja",IF(G26=" ",Formler!$B$1,G26*1.5)," ") -> 
A27: Multimedie | D27: 2019-10-22 | H27: =IF(C27="ja",IF(G27=" ",Formler!$B$1,G27*1.5)," ") -> 
D28: 2019-10-23 | H28: =IF(C28="ja",IF(G28=" ",Formler!$B$1,G28*1.5)," ") -> 
A29: Fradrag kost | B29: =IF(L42/Formler!B16>=37,300,IF(L42/Formler!B16>=20,225,IF(L42/Formler!B16<=19,150))) -> 150 | D29: 2019-10-24 | H29: =IF(C29="ja",IF(G29=" ",Formler!$B$1,G29*1.5)," ") -> 
D30: 2019-10-25 | H30: =IF(C30="ja",IF(G30=" ",Formler!$B$1,G30*1.5)," ") -> 
A31: Fradrag gavekasse | B31: =Formler!B29 -> 50 | D31: 2019-10-26 | H31: =IF(C31="ja",IF(G31=" ",Formler!$B$1,G31*1.5)," ") -> 
D32: 2019-10-27 | H32: =IF(C32="ja",IF(G32=" ",Formler!$B$1,G32*1.5)," ") -> 
A33: Bagvagt | D33: 2019-10-28 | H33: =IF(C33="ja",IF(G33=" ",Formler!$B$1,G33*1.5)," ") -> 
D34: 2019-10-29 | H34: =IF(C34="ja",IF(G34=" ",Formler!$B$1,G34*1.5)," ") -> 
A35: Kørsel i km | D35: 2019-10-30 | G35: =(IF(AND(E35>0,F35>0),HOUR(F35-E35)+MINUTE(F35-E35)/60," ")) ->  | H35: =IF(C35="ja",IF(G35=" ",Formler!$B$1,G35*1.5)," ") -> 
D36: 2019-10-31 | G36: =IF(F36>0,HOUR(F36-E36)+MINUTE(F36-E36)/60," ") ->  | H36: =IF(C36="ja",IF(G36=" ",Formler!$B$1,G36*1.5)," ") -> 
G37: =SUM(G6:G36) -> 0 | H37: =SUM(H6:H36) -> 0 | J37: =SUM(J6:J36) -> 0 | K37: 0 | L37: 0 | M37: 0 | N37: =SUM(N6:N36) -> 0 | O37: 0 | P37: 0 | Q37: 0 | R37: =SUM(R6:R36) -> 0 | S37: =SUM(S6:S36) -> 0 | T37: =SUM(T6:T36) -> 0
D38: Timetal d.m. | G38: =G37+O37+P37+Q37+M37+R37+S37 -> 0 | M38: Fast timetal | P38: =Formler!B2*Formler!B16 -> 151.6635135 | U38: Ugentligt timetal: | V38: Ugentligt timetam | W38: 37 | X38: Søgnehellig beregning | Y38: =37/5 -> 7.4
D39: Oppe | G39: =N37 -> 0 | M39: Gl.saldo | P39: 1.57 | U39: Skiftes til hvid samt låses
D40: Aften fra saldo | G40: =J37/12 -> 0 | M40: Ny saldo | P40: =+L42-P38+P39 -> -150.0935135
D41: Nat | G41: =M37 -> 0 | M41: Ferie saldo | Q41: 10 | R41: Ny | S41: =Q41-(P37/Formler!B1)+0 -> 10
D42: Søn/helligdage | G42: =L37+H37 -> 0 | K42: I alt | L42: =SUM(G38+G39+G40+G41+G42) -> 0 | M42: Ferie/frisaldo i dage | Q42: 5 | R42: Ny | S42: =Q42-(R37/Formler!B1) -> 5
M43: Oms/sen saldo i dage | Q43: 2 | R43: Ny | S43: =Q43-(S37/Formler!B1) -> 2

Sheet November
G1: AFS Nat: | I1: 6 | K1: Hvis haft nat, skriv ja i kolonnen. | R1: Aften: | S1: 17:00:00 | U1: Lørdag | V1: 11:00:00 | W1: 23:00:00
U2: Søn/hellig | V2: 07:00:00 | W2: 23:00:00
A3: Lønberegning: | D3: Navn: | E3: =Oktober!E3 -> Poul Prøvesen | M3: Måned: | O3: November | R3: År: | S3: 2019
C4: Helligd. | D4: Dato | E4: Mødt | F4: Gået | G4: Timer | H4: Hellig | I4: Nat | J4: Aften | K4: Lørdag | L4: Søndag | M4: AFS | N4: Op- | O4: Syg | P4: Ferie | Q4: Kur- | R4: Ferie | S4: Oms. | T4: Ekstra | U4: Bemærkning
A5: Månedsløn | B5: =Oktober!B5 -> 99000 | E5: kl. | F5: kl. | H5: dag | J5: 17-23 | K5: 11-23 | L5: 7-23 | M5: nat | N5: pe | P5: timer | Q5: sus | R5: Fri | S5: senior | T5: timer
D6: 2019-11-01 | G6: =(IF(AND(E6>0,F6>0),HOUR(F6-E6)+MINUTE(F6-E6)/60," ")) ->  | H6: =IF(C6="ja",IF(G6=" ",Formler!$B$1,G6*1.5)," ") ->  | J6: =IF(F6>$S$1,HOUR(F6-$S$1)+MINUTE(F6-$S$1)/60," ") ->  | K6: =IF(WEEKDAY(D6,2)=6,IF(F6>$V$1,(HOUR(F6-$V$1)+MINUTE(F6-$V$1)/60)," ")," ") ->  | L6: =IF(WEEKDAY(D6,2)=7,IF(E6>0,(HOUR(F6-E6)+MINUTE(F6-E6)/60)/2," ")," ") ->  | M6: =IF(I6="ja",(IF(N6>=0,$I$1-(N6*0.75),$V$5+0))," ") -> 
A7: Stillingstillæg | B7: =Oktober!B7 -> 10 | D7: 2019-11-02 | H7: =IF(C7="ja",IF(G7=" ",Formler!$B$1,G7*1.5)," ") ->  | J7: =IF(F7>$S$1,HOUR(F7-$S$1)+MINUTE(F7-$S$1)/60," ") ->  | K7: =IF(WEEKDAY(D7,2)=6,IF(F7>$V$1,(HOUR(F7-$V$1)+MINUTE(F7-$V$1)/60)," ")," ") ->  | M7: =IF(I7="ja",(IF(N7>=0,$I$1-(N7*0.75),$V$5+0))," ") -> 
D8: 2019-11-03 | H8: =IF(C8="ja",IF(G8=" ",Formler!$B$1,G8*1.5)," ") ->  | J8: =IF(F8>$S$1,HOUR(F8-$S$1)+MINUTE(F8-$S$1)/60," ") ->  | K8: =IF(WEEKDAY(D8,2)=6,IF(F8>$V$1,(HOUR(F8-$V$1)+MINUTE(F8-$V$1)/60)," ")," ") -> 
A9: Funktionstillæg | B9: =Oktober!B9 -> 10 | D9: 2019-11-04 | H9: =IF(C9="ja",IF(G9=" ",Formler!$B$1,G9*1.5)," ") ->  | J9: =IF(F9>$S$1,HOUR(F9-$S$1)+MINUTE(F9-$S$1)/60," ") -> 
D10: 2019-11-05 | H10: =IF(C10="ja",IF(G10=" ",Formler!$B$1,G10*1.5)," ") ->  | J10: =IF(F10>$S$1,HOUR(F10-$S$1)+MINUTE(F10-$S$1)/60," ") -> 
A11: Kvallifikationstillæg | B11: =Oktober!B11 -> 10 | D11: 2019-11-06 | H11: =IF(C11="ja",IF(G11=" ",Formler!$B$1,G11*1.5)," ") -> 
D12: 2019-11-07 | H12: =IF(C12="ja",IF(G12=" ",Formler!$B$1,G12*1.5)," ") -> 
A13: Grundtillæg | B13: =Oktober!B13 -> 10 | D13: 2019-11-08 | H13: =IF(C13="ja",IF(G13=" ",Formler!$B$1,G13*1.5)," ") -> 
D14: 2019-11-09 | H14: =IF(C14="ja",IF(G14=" ",Formler!$B$1,G14*1.5)," ") -> 
A15: Ekstra timer _____ | B15: =T37*Formler!B7 -> 0 | D15: 2019-11-10 | H15: =IF(C15="ja",IF(G15=" ",Formler!$B$1,G15*1.5)," ") -> 
D16: 2019-11-11 | H16: =IF(C16="ja",IF(G16=" ",Formler!$B$1,G16*1.5)," ") -> 
A17: Aftentillæg | B17: =+J37*Formler!B9 -> 0 | D17: 2019-11-12 | H17: =IF(C17="ja",IF(G17=" ",Formler!$B$1,G17*1.5)," ") -> 
D18: 2019-11-13 | H18: =IF(C18="ja",IF(G18=" ",Formler!$B$1,G18*1.5)," ") -> 
A19: Lørdagstillæg | B19: =+K37*Formler!B10 -> 0 | D19: 2019-11-14 | H19: =IF(C19="ja",IF(G19=" ",Formler!$B$1,G19*1.5)," ") -> 
D20: 2019-11-15 | H20: =IF(C20="ja",IF(G20=" ",Formler!$B$1,G20*1.5)," ") -> 
A21: Fradrag | D21: 2019-11-16 | H21: =IF(C21="ja",IF(G21=" ",Formler!$B$1,G21*1.5)," ") -> 
D22: 2019-11-17 | H22: =IF(C22="ja",IF(G22=" ",Formler!$B$1,G22*1.5)," ") -> 
A23: Uniformsgodtgørelse | B23: =P38*Formler!B11 -> 279.0608648 | D23: 2019-11-18 | H23: =IF(C23="ja",IF(G23=" ",Formler!$B$1,G23*1.5)," ") -> 
D24: 2019-11-19 | H24: =IF(C24="ja",IF(G24=" ",Formler!$B$1,G24*1.5)," ") -> 
A25: Sundhedsforsikring | B25: =Oktober!B25 -> 45.39 | D25: 2019-11-20 | H25: =IF(C25="ja",IF(G25=" ",Formler!$B$1,G25*1.5)," ") -> 
D26: 2019-11-21 | H26: =IF(C26="ja",IF(G26=" ",Formler!$B$1,G26*1.5)," ") -> 
A27: Multimedie | C27: =IF(D27=X21,"ja"," ") ->  | D27: 2019-11-22 | H27: =IF(C27="ja",IF(G27=" ",Formler!$B$1,G27*1.5)," ") -> 
D28: 2019-11-23 | H28: =IF(C28="ja",IF(G28=" ",Formler!$B$1,G28*1.5)," ") -> 
A29: Fradrag kost | B29: =IF(L42/Formler!B16>=37,300,IF(L42/Formler!B16>=20,225,IF(L42/Formler!B16<=19,150))) -> 150 | D29: 2019-11-24 | H29: =IF(C29="ja",IF(G29=" ",Formler!$B$1,G29*1.5)," ") -> 
D30: 2019-11-25 | H30: =IF(C30="ja",IF(G30=" ",Formler!$B$1,G30*1.5)," ") -> 
A31: Fradrag gavekasse | B31: =Oktober!B31 -> 50 | D31: 2019-11-26 | H31: =IF(C31="ja",IF(G31=" ",Formler!$B$1,G31*1.5)," ") -> 
D32: 2019-11-27 | H32: =IF(C32="ja",IF(G32=" ",Formler!$B$1,G32*1.5)," ") -> 
A33: Bagvagt | D33: 2019-11-28 | H33: =IF(C33="ja",IF(G33=" ",Formler!$B$1,G33*1.5)," ") -> 
D34: 2019-11-29 | H34: =IF(C34="ja",IF(G34=" ",Formler!$B$1,G34*1.5)," ") -> 
A35: Kørsel i km | D35: 2019-11-30 | H35: =IF(C35="ja",IF(G35=" ",Formler!$B$1,G35*1.5)," ") -> 
G36: =IF(F36>0,HOUR(F36-E36)+MINUTE(F36-E36)/60," ") ->  | H36: =IF(C36="ja",IF(G36=" ",Formler!$B$1,G36*1.5)," ") -> 
G37: =SUM(G6:G36) -> 0 | H37: =SUM(H6:H36) -> 0 | J37: =SUM(J6:J36) -> 0 | K37: 0 | L37: 0 | M37: 0 | N37: 0 | O37: 0 | P37: 0 | Q37: =SUM(Q6:Q36) -> 0 | R37: =SUM(R6:R36) -> 0 | S37: =SUM(S6:S36) -> 0 | T37: 0
D38: Timetal d.m. | G38: =G37+O37+P37+Q37+M37+R37+S37 -> 0 | M38: Fast timetal | P38: =Oktober!P38 -> 151.6635135
D39: Oppe | G39: =N37 -> 0 | M39: Gl.saldo | P39: =Oktober!P40 -> -150.0935135
D40: Aften fra saldo | G40: =J37/12+Oktober!G40 -> 0 | M40: Ny saldo | P40: =+L42-P38+P39 -> -301.757027
D41: Nat | G41: =M37 -> 0 | M41: Ferie saldo | Q41: =Oktober!S41 -> 10 | R41: Ny | S41: =Q41-(P37/Formler!B1)+0 -> 10
D42: Søn/helligdage | G42: =L37+H37 -> 0 | K42: I alt | L42: =SUM(G38+G39+G40+G41+G42) -> 0 | M42: Ferie/frisaldo i dage | Q42: =Oktober!S42 -> 5 | R42: Ny | S42: =Q42-(R37/Formler!B1) -> 5
M43: Oms/sen saldo i dage | Q43: =Oktober!S43 -> 2 | R43: Ny | S43: =Q43-(S37/Formler!B1) -> 2

Sheet December
G1: AFS Nat: | I1: 6 | K1: Hvis haft nat, skriv ja i kolonnen. | R1: Aften: | S1: 17:00:00 | U1: Lørdag | V1: 11:00:00 | W1: 23:00:00
U2: Søn/hellig | V2: 07:00:00 | W2: 23:00:00
A3: Lønberegning: | D3: Navn: | E3: =November!E3 -> Poul Prøvesen | M3: Måned: | O3: December | R3: År: | S3: 2019
C4: Helligd. | D4: Dato | E4: Mødt | F4: Gået | G4: Timer | H4: Hellig | I4: Nat | J4: Aften | K4: Lørdag | L4: Søndag | M4: AFS | N4: Op- | O4: Syg | P4: Ferie | Q4: Kur- | R4: Ferie | S4: Oms. | T4: Ekstra | U4: Bemærkning
A5: Månedsløn | B5: =November!B5 -> 99000 | E5: kl. | F5: kl. | H5: dag | J5: 17-23 | K5: 11-23 | L5: 7-23 | M5: nat | N5: pe | P5: timer | Q5: sus | R5: Fri | S5: senior | T5: timer
D6: 2019-12-01 | G6: =(IF(AND(E6>0,F6>0),HOUR(F6-E6)+MINUTE(F6-E6)/60," ")) ->  | H6: =IF(C6="ja",IF(G6=" ",Formler!$B$1,G6*1.5)," ") ->  | J6: =IF(F6>$S$1,HOUR(F6-$S$1)+MINUTE(F6-$S$1)/60," ") ->  | K6: =IF(WEEKDAY(D6,2)=6,IF(F6>$V$1,(HOUR(F6-$V$1)+MINUTE(F6-$V$1)/60)," ")," ") ->  | L6: =IF(WEEKDAY(D6,2)=7,IF(E6>0,(HOUR(F6-E6)+MINUTE(F6-E6)/60)/2," ")," ") ->  | M6: =IF(I6="ja",(IF(N6>=0,$I$1-(N6*0.75),$V$5+0))," ") -> 
A7: Stillingstillæg | B7: =November!B7 -> 10 | D7: 2019-12-02 | H7: =IF(C7="ja",IF(G7=" ",Formler!$B$1,G7*1.5)," ") ->  | J7: =IF(F7>$S$1,HOUR(F7-$S$1)+MINUTE(F7-$S$1)/60," ") ->  | K7: =IF(WEEKDAY(D7,2)=6,IF(F7>$V$1,(HOUR(F7-$V$1)+MINUTE(F7-$V$1)/60)," ")," ") ->  | M7: =IF(I7="ja",(IF(N7>=0,$I$1-(N7*0.75),$V$5+0))," ") -> 
D8: 2019-12-03 | H8: =IF(C8="ja",IF(G8=" ",Formler!$B$1,G8*1.5)," ") ->  | J8: =IF(F8>$S$1,HOUR(F8-$S$1)+MINUTE(F8-$S$1)/60," ") -> 
A9: Funktionstillæg | B9: =November!B9 -> 10 | D9: 2019-12-04 | H9: =IF(C9="ja",IF(G9=" ",Formler!$B$1,G9*1.5)," ") -> 
D10: 2019-12-05 | H10: =IF(C10="ja",IF(G10=" ",Formler!$B$1,G10*1.5)," ") -> 
A11: Kvallifikationstillæg | B11: =November!B11 -> 10 | D11: 2019-12-06 | H11: =IF(C11="ja",IF(G11=" ",Formler!$B$1,G11*1.5)," ") -> 
D12: 2019-12-07 | H12: =IF(C12="ja",IF(G12=" ",Formler!$B$1,G12*1.5)," ") -> 
A13: Grundtillæg | B13: =November!B13 -> 10 | D13: 2019-12-08 | H13: =IF(C13="ja",IF(G13=" ",Formler!$B$1,G13*1.5)," ") -> 
D14: 2019-12-09 | H14: =IF(C14="ja",IF(G14=" ",Formler!$B$1,G14*1.5)," ") -> 
A15: Ekstra timer _____ | B15: =T37*Formler!B7 -> 0 | D15: 2019-12-10 | H15: =IF(C15="ja",IF(G15=" ",Formler!$B$1,G15*1.5)," ") -> 
D16: 2019-12-11 | H16: =IF(C16="ja",IF(G16=" ",Formler!$B$1,G16*1.5)," ") -> 
A17: Aftentillæg | B17: =+J37*Formler!B9 -> 0 | D17: 2019-12-12 | H17: =IF(C17="ja",IF(G17=" ",Formler!$B$1,G17*1.5)," ") -> 
D18: 2019-12-13 | H18: =IF(C18="ja",IF(G18=" ",Formler!$B$1,G18*1.5)," ") -> 
A19: Lørdagstillæg | B19: =+K37*Formler!B10 -> 0 | D19: 2019-12-14 | H19: =IF(C19="ja",IF(G19=" ",Formler!$B$1,G19*1.5)," ") -> 
D20: 2019-12-15 | H20: =IF(C20="ja",IF(G20=" ",Formler!$B$1,G20*1.5)," ") -> 
A21: Fradrag | D21: 2019-12-16 | H21: =IF(C21="ja",IF(G21=" ",Formler!$B$1,G21*1.5)," ") -> 
D22: 2019-12-17 | H22: =IF(C22="ja",IF(G22=" ",Formler!$B$1,G22*1.5)," ") -> 
A23: Uniformsgodtgørelse | B23: =P38*Formler!B11 -> 279.0608648 | D23: 2019-12-18 | H23: =IF(C23="ja",IF(G23=" ",Formler!$B$1,G23*1.5)," ") -> 
D24: 2019-12-19 | H24: =IF(C24="ja",IF(G24=" ",Formler!$B$1,G24*1.5)," ") -> 
A25: Sundhedsforsikring | B25: =November!B25 -> 45.39 | D25: 2019-12-20 | H25: =IF(C25="ja",IF(G25=" ",Formler!$B$1,G25*1.5)," ") -> 
D26: 2019-12-21 | H26: =IF(C26="ja",IF(G26=" ",Formler!$B$1,G26*1.5)," ") -> 
A27: Multimedie | D27: 2019-12-22 | H27: =IF(C27="ja",IF(G27=" ",Formler!$B$1,G27*1.5)," ") -> 
D28: 2019-12-23 | H28: =IF(C28="ja",IF(G28=" ",Formler!$B$1,G28*1.5)," ") -> 
A29: Fradrag kost | B29: =IF(L42/Formler!B16>=37,300,IF(L42/Formler!B16>=20,225,IF(L42/Formler!B16<=19,150))) -> 150 | C29: ja | D29: 2019-12-24 | H29: =IF(C29="ja",IF(G29=" ",Formler!$B$1,G29*1.5)," ") -> 7
C30: ja | D30: 2019-12-25 | H30: =IF(C30="ja",IF(G30=" ",Formler!$B$1,G30*1.5)," ") -> 7
A31: Fradrag gavekasse | B31: =November!B31 -> 50 | C31: ja | D31: 2019-12-26 | H31: =IF(C31="ja",IF(G31=" ",Formler!$B$1,G31*1.5)," ") -> 7
D32: 2019-12-27 | H32: =IF(C32="ja",IF(G32=" ",Formler!$B$1,G32*1.5)," ") -> 
A33: Bagvagt | D33: 2019-12-28 | H33: =IF(C33="ja",IF(G33=" ",Formler!$B$1,G33*1.5)," ") -> 
D34: 2019-12-29 | H34: =IF(C34="ja",IF(G34=" ",Formler!$B$1,G34*1.5)," ") -> 
A35: Kørsel i km | D35: 2019-12-30 | H35: =IF(C35="ja",IF(G35=" ",Formler!$B$1,G35*1.5)," ") -> 
C36: ja | D36: 2019-12-31 | G36: =IF(F36>0,HOUR(F36-E36)+MINUTE(F36-E36)/60," ") ->  | H36: =IF(C36="ja",IF(G36=" ",Formler!$B$1,G36*1.5)," ") -> 7
G37: =SUM(G6:G36) -> 0 | H37: =SUM(H6:H36) -> 28 | I37: =SUM(I6:I36) -> 0 | J37: =SUM(J6:J36) -> 0 | K37: 0 | L37: 0 | M37: 0 | N37: 0 | O37: 0 | P37: 0 | Q37: 0 | R37: =SUM(R6:R36) -> 0 | S37: =SUM(S6:S36) -> 0 | T37: 0
D38: Timetal d.m. | G38: =G37+O37+P37+Q37+M37+R37+S37 -> 0 | M38: Fast timetal | P38: =November!P38 -> 151.6635135
D39: Oppe | G39: =N37 -> 0 | M39: Gl.saldo | P39: =November!P40 -> -301.757027
D40: Aften fra saldo | G40: =J37/12+November!G40 -> 0 | M40: Ny saldo | P40: =+L42-P38+P39 -> -425.4205405
D41: Nat | G41: =M37 -> 0 | M41: Ferie saldo | Q41: =November!S41 -> 10 | R41: Ny | S41: =Q41-(P37/Formler!B1)+0 -> 10
D42: Søn/helligdage | G42: =L37+H37 -> 28 | K42: I alt | L42: =SUM(G38+G39+G40+G41+G42) -> 28 | M42: Ferie/frisaldo i dage | Q42: =November!S42 -> 5 | R42: Ny | S42: =Q42-(R37/Formler!B1) -> 5
M43: Oms/sen saldo i dage | Q43: =November!S43 -> 2 | R43: Ny | S43: =Q43-(S37/Formler!B1) -> 2

Sheet Januar
G1: AFS Nat: | I1: 6 | K1: Hvis haft nat, skriv ja i kolonnen. | R1: Aften: | S1: 17:00:00 | U1: Lørdag | V1: 11:00:00 | W1: 23:00:00
U2: Søn/hellig | V2: 07:00:00 | W2: 23:00:00
A3: Lønberegning: | D3: Navn: | E3: =December!E3 -> Poul Prøvesen | M3: Måned: | O3: Januar | R3: År: | S3: 2020
C4: Helligd. | D4: Dato | E4: Mødt | F4: Gået | G4: Timer | H4: Hellig | I4: Nat | J4: Aften | K4: Lørdag | L4: Søndag | M4: AFS | N4: Op- | O4: Syg | P4: Ferie | Q4: Kur- | R4: Ferie | S4: Oms. | T4: Ekstra | U4: Bemærkning
A5: Månedsløn | B5: =December!B5 -> 99000 | E5: kl. | F5: kl. | H5: dag | J5: 17-23 | K5: 11-23 | L5: 7-23 | M5: nat | N5: pe | P5: timer | Q5: sus | R5: Fri | S5: senior | T5: timer
C6: ja | D6: 2020-01-01 | G6: =(IF(AND(E6>0,F6>0),HOUR(F6-E6)+MINUTE(F6-E6)/60," ")) ->  | H6: =IF(C6="ja",IF(G6=" ",Formler!$B$1,G6*1.5)," ") -> 7 | J6: =IF(F6>$S$1,HOUR(F6-$S$1)+MINUTE(F6-$S$1)/60," ") ->  | K6: =IF(WEEKDAY(D6,2)=6,IF(F6>$V$1,(HOUR(F6-$V$1)+MINUTE(F6-$V$1)/60)," ")," ") ->  | L6: =IF(WEEKDAY(D6,2)=7,IF(E6>0,(HOUR(F6-E6)+MINUTE(F6-E6)/60)/2," ")," ") ->  | M6: =IF(I6="ja",(IF(N6>=0,$I$1-(N6*0.75),$V$5+0))," ") -> 
A7: Stillingstillæg | B7: =December!B7 -> 10 | D7: 2020-01-02 | H7: =IF(C7="ja",IF(G7=" ",Formler!$B$1,G7*1.5)," ") ->  | J7: =IF(F7>$S$1,HOUR(F7-$S$1)+MINUTE(F7-$S$1)/60," ") ->  | K7: =IF(WEEKDAY(D7,2)=6,IF(F7>$V$1,(HOUR(F7-$V$1)+MINUTE(F7-$V$1)/60)," ")," ") ->  | M7: =IF(I7="ja",(IF(N7>=0,$I$1-(N7*0.75),$V$5+0))," ") -> 
D8: 2020-01-03 | H8: =IF(C8="ja",IF(G8=" ",Formler!$B$1,G8*1.5)," ") -> 
A9: Funktionstillæg | B9: =December!B9 -> 10 | D9: 2020-01-04 | H9: =IF(C9="ja",IF(G9=" ",Formler!$B$1,G9*1.5)," ") -> 
D10: 2020-01-05 | H10: =IF(C10="ja",IF(G10=" ",Formler!$B$1,G10*1.5)," ") -> 
A11: Kvallifikationstillæg | B11: =December!B11 -> 10 | D11: 2020-01-06 | H11: =IF(C11="ja",IF(G11=" ",Formler!$B$1,G11*1.5)," ") -> 
D12: 2020-01-07 | H12: =IF(C12="ja",IF(G12=" ",Formler!$B$1,G12*1.5)," ") -> 
A13: Grundtillæg | B13: =December!B13 -> 10 | D13: 2020-01-08 | H13: =IF(C13="ja",IF(G13=" ",Formler!$B$1,G13*1.5)," ") -> 
D14: 2020-01-09 | H14: =IF(C14="ja",IF(G14=" ",Formler!$B$1,G14*1.5)," ") -> 
A15: Ekstra timer _____ | B15: =T37*Formler!B7 -> 0 | D15: 2020-01-10 | H15: =IF(C15="ja",IF(G15=" ",Formler!$B$1,G15*1.5)," ") -> 
D16: 2020-01-11 | H16: =IF(C16="ja",IF(G16=" ",Formler!$B$1,G16*1.5)," ") -> 
A17: Aftentillæg | B17: =+J37*Formler!B9 -> 0 | D17: 2020-01-12 | H17: =IF(C17="ja",IF(G17=" ",Formler!$B$1,G17*1.5)," ") -> 
D18: 2020-01-13 | H18: =IF(C18="ja",IF(G18=" ",Formler!$B$1,G18*1.5)," ") -> 
A19: Lørdagstillæg | B19: =+K37*Formler!B10 -> 0 | D19: 2020-01-14 | H19: =IF(C19="ja",IF(G19=" ",Formler!$B$1,G19*1.5)," ") -> 
D20: 2020-01-15 | H20: =IF(C20="ja",IF(G20=" ",Formler!$B$1,G20*1.5)," ") -> 
A21: Fradrag | D21: 2020-01-16 | H21: =IF(C21="ja",IF(G21=" ",Formler!$B$1,G21*1.5)," ") -> 
D22: 2020-01-17 | H22: =IF(C22="ja",IF(G22=" ",Formler!$B$1,G22*1.5)," ") -> 
A23: Uniformsgodtgørelse | B23: =P38*Formler!B11 -> 279.0608648 | D23: 2020-01-18 | H23: =IF(C23="ja",IF(G23=" ",Formler!$B$1,G23*1.5)," ") -> 
D24: 2020-01-19 | H24: =IF(C24="ja",IF(G24=" ",Formler!$B$1,G24*1.5)," ") -> 
A25: Sundhedsforsikring | B25: =December!B25 -> 45.39 | D25: 2020-01-20 | H25: =IF(C25="ja",IF(G25=" ",Formler!$B$1,G25*1.5)," ") -> 
D26: 2020-01-21 | H26: =IF(C26="ja",IF(G26=" ",Formler!$B$1,G26*1.5)," ") -> 
A27: Multimedie | C27: =IF(D27=X21,"ja"," ") ->  | D27: 2020-01-22 | H27: =IF(C27="ja",IF(G27=" ",Formler!$B$1,G27*1.5)," ") -> 
D28: 2020-01-23 | H28: =IF(C28="ja",IF(G28=" ",Formler!$B$1,G28*1.5)," ") -> 
A29: Fradrag kost | B29: =IF(L42/Formler!B16>=37,300,IF(L42/Formler!B16>=20,225,IF(L42/Formler!B16<=19,150))) -> 150 | D29: 2020-01-24 | H29: =IF(C29="ja",IF(G29=" ",Formler!$B$1,G29*1.5)," ") -> 
D30: 2020-01-25 | H30: =IF(C30="ja",IF(G30=" ",Formler!$B$1,G30*1.5)," ") -> 
A31: Fradrag gavekasse | B31: =December!B31 -> 50 | D31: 2020-01-26 | H31: =IF(C31="ja",IF(G31=" ",Formler!$B$1,G31*1.5)," ") -> 
D32: 2020-01-27 | H32: =IF(C32="ja",IF(G32=" ",Formler!$B$1,G32*1.5)," ") -> 
A33: Bagvagt | D33: 2020-01-28 | H33: =IF(C33="ja",IF(G33=" ",Formler!$B$1,G33*1.5)," ") -> 
D34: 2020-01-29 | H34: =IF(C34="ja",IF(G34=" ",Formler!$B$1,G34*1.5)," ") -> 
A35: Kørsel i km | D35: 2020-01-30 | H35: =IF(C35="ja",IF(G35=" ",Formler!$B$1,G35*1.5)," ") -> 
D36: 2020-01-31 | G36: =IF(F36>0,HOUR(F36-E36)+MINUTE(F36-E36)/60," ") ->  | H36: =IF(C36="ja",IF(G36=" ",Formler!$B$1,G36*1.5)," ") -> 
G37: =SUM(G6:G36) -> 0 | H37: =SUM(H6:H36) -> 7 | J37: =SUM(J6:J36) -> 0 | K37: 0 | L37: 0 | M37: 0 | N37: 0 | O37: 0 | P37: 0 | Q37: 0 | R37: =SUM(R6:R36) -> 0 | S37: =SUM(S6:S36) -> 0 | T37: 0
D38: Timetal d.m. | G38: =G37+O37+P37+Q37+M37+R37+S37 -> 0 | M38: Fast timetal | P38: =December!P38 -> 151.6635135
D39: Oppe | G39: =N37 -> 0 | M39: Gl.saldo | P39: =December!P40 -> -425.4205405
D40: Aften fra saldo | G40: =J37/12+December!G40 -> 0 | M40: Ny saldo | P40: =+L42-P38+P39 -> -570.084054
D41: Nat | G41: =M37 -> 0 | M41: Ferie saldo | Q41: =December!S41 -> 10 | R41: Ny | S41: =Q41-(P37/Formler!B1)+0 -> 10
D42: Søn/helligdage | G42: =L37+H37 -> 7 | K42: I alt | L42: =SUM(G38+G39+G40+G41+G42) -> 7 | M42: Ferie/frisaldo i dage | Q42: =December!S42 -> 5 | R42: Ny | S42: =Q42-(R37/Formler!B1) -> 5
M43: Oms/sen saldo i dage | Q43: =December!S43 -> 2 | R43: Ny | S43: =Q43-(S37/Formler!B1) -> 2

Sheet Februar
G1: AFS Nat: | I1: 6 | K1: Hvis haft nat, skriv ja i kolonnen. | R1: Aften: | S1: 17:00:00 | U1: Lørdag | V1: 11:00:00 | W1: 23:00:00
U2: Søn/hellig | V2: 07:00:00 | W2: 23:00:00
A3: Lønberegning: | D3: Navn: | E3: =Januar!E3 -> Poul Prøvesen | M3: Måned: | O3: Februar | R3: År: | S3: 2020
C4: Helligd. | D4: Dato | E4: Mødt | F4: Gået | G4: Timer | H4: Hellig | I4: Nat | J4: Aften | K4: Lørdag | L4: Søndag | M4: AFS | N4: Op- | O4: Syg | P4: Ferie | Q4: Kur- | R4: Ferie | S4: Oms. | T4: Ekstra | U4: Bemærkning
A5: Månedsløn | B5: =Januar!B5 -> 99000 | E5: kl. | F5: kl. | H5: dag | J5: 17-23 | K5: 11-23 | L5: 7-23 | M5: nat | N5: pe | P5: timer | Q5: sus | R5: Fri | S5: senior | T5: timer
D6: 2020-02-01 | G6: =(IF(AND(E6>0,F6>0),HOUR(F6-E6)+MINUTE(F6-E6)/60," ")) ->  | H6: =IF(C6="ja",IF(G6=" ",Formler!$B$1,G6*1.5)," ") ->  | J6: =IF(F6>$S$1,HOUR(F6-$S$1)+MINUTE(F6-$S$1)/60," ") ->  | K6: =IF(WEEKDAY(D6,2)=6,IF(F6>$V$1,(HOUR(F6-$V$1)+MINUTE(F6-$V$1)/60)," ")," ") ->  | L6: =IF(WEEKDAY(D6,2)=7,IF(E6>0,(HOUR(F6-E6)+MINUTE(F6-E6)/60)/2," ")," ") ->  | M6: =IF(I6="ja",(IF(N6>=0,$I$1-(N6*0.75),$V$5+0))," ") -> 
A7: Stillingstillæg | B7: =Januar!B7 -> 10 | D7: 2020-02-02 | H7: =IF(C7="ja",IF(G7=" ",Formler!$B$1,G7*1.5)," ") ->  | J7: =IF(F7>$S$1,HOUR(F7-$S$1)+MINUTE(F7-$S$1)/60," ") ->  | K7: =IF(WEEKDAY(D7,2)=6,IF(F7>$V$1,(HOUR(F7-$V$1)+MINUTE(F7-$V$1)/60)," ")," ") ->  | M7: =IF(I7="ja",(IF(N7>=0,$I$1-(N7*0.75),$V$5+0))," ") -> 
D8: 2020-02-03 | H8: =IF(C8="ja",IF(G8=" ",Formler!$B$1,G8*1.5)," ") -> 
A9: Funktionstillæg | B9: =Januar!B9 -> 10 | D9: 2020-02-04 | H9: =IF(C9="ja",IF(G9=" ",Formler!$B$1,G9*1.5)," ") -> 
D10: 2020-02-05 | H10: =IF(C10="ja",IF(G10=" ",Formler!$B$1,G10*1.5)," ") -> 
A11: Kvallifikationstillæg | B11: =Januar!B11 -> 10 | D11: 2020-02-06 | H11: =IF(C11="ja",IF(G11=" ",Formler!$B$1,G11*1.5)," ") -> 
D12: 2020-02-07 | H12: =IF(C12="ja",IF(G12=" ",Formler!$B$1,G12*1.5)," ") -> 
A13: Grundtillæg | B13: =Januar!B13 -> 10 | D13: 2020-02-08 | H13: =IF(C13="ja",IF(G13=" ",Formler!$B$1,G13*1.5)," ") -> 
D14: 2020-02-09 | H14: =IF(C14="ja",IF(G14=" ",Formler!$B$1,G14*1.5)," ") -> 
A15: Ekstra timer _____ | B15: =T37*Formler!B7 -> 0 | D15: 2020-02-10 | H15: =IF(C15="ja",IF(G15=" ",Formler!$B$1,G15*1.5)," ") -> 
D16: 2020-02-11 | H16: =IF(C16="ja",IF(G16=" ",Formler!$B$1,G16*1.5)," ") -> 
A17: Aftentillæg | B17: =+J37*Formler!B9 -> 0 | D17: 2020-02-12 | H17: =IF(C17="ja",IF(G17=" ",Formler!$B$1,G17*1.5)," ") -> 
D18: 2020-02-13 | H18: =IF(C18="ja",IF(G18=" ",Formler!$B$1,G18*1.5)," ") -> 
A19: Lørdagstillæg | B19: =+K37*Formler!B10 -> 0 | D19: 2020-02-14 | H19: =IF(C19="ja",IF(G19=" ",Formler!$B$1,G19*1.5)," ") -> 
D20: 2020-02-15 | H20: =IF(C20="ja",IF(G20=" ",Formler!$B$1,G20*1.5)," ") -> 
A21: Fradrag | D21: 2020-02-16 | H21: =IF(C21="ja",IF(G21=" ",Formler!$B$1,G21*1.5)," ") -> 
D22: 2020-02-17 | H22: =IF(C22="ja",IF(G22=" ",Formler!$B$1,G22*1.5)," ") -> 
A23: Uniformsgodtgørelse | B23: =P38*Formler!B11 -> 279.0608648 | D23: 2020-02-18 | H23: =IF(C23="ja",IF(G23=" ",Formler!$B$1,G23*1.5)," ") -> 
D24: 2020-02-19 | H24: =IF(C24="ja",IF(G24=" ",Formler!$B$1,G24*1.5)," ") -> 
A25: Sundhedsforsikring | B25: =Januar!B25 -> 45.39 | D25: 2020-02-20 | H25: =IF(C25="ja",IF(G25=" ",Formler!$B$1,G25*1.5)," ") -> 
D26: 2020-02-21 | H26: =IF(C26="ja",IF(G26=" ",Formler!$B$1,G26*1.5)," ") -> 
A27: Multimedie | D27: 2020-02-22 | H27: =IF(C27="ja",IF(G27=" ",Formler!$B$1,G27*1.5)," ") -> 
D28: 2020-02-23 | H28: =IF(C28="ja",IF(G28=" ",Formler!$B$1,G28*1.5)," ") -> 
A29: Fradrag kost | B29: =IF(L42/Formler!B16>=37,300,IF(L42/Formler!B16>=20,225,IF(L42/Formler!B16<=19,150))) -> 150 | D29: 2020-02-24 | H29: =IF(C29="ja",IF(G29=" ",Formler!$B$1,G29*1.5)," ") -> 
D30: 2020-02-25 | H30: =IF(C30="ja",IF(G30=" ",Formler!$B$1,G30*1.5)," ") -> 
A31: Fradrag gavekasse | B31: =Januar!B31 -> 50 | D31: 2020-02-26 | H31: =IF(C31="ja",IF(G31=" ",Formler!$B$1,G31*1.5)," ") -> 
D32: 2020-02-27 | H32: =IF(C32="ja",IF(G32=" ",Formler!$B$1,G32*1.5)," ") -> 
A33: Bagvagt | D33: 2020-02-28 | H33: =IF(C33="ja",IF(G33=" ",Formler!$B$1,G33*1.5)," ") -> 
D34: 2020-02-29 | H34: =IF(C34="ja",IF(G34=" ",Formler!$B$1,G34*1.5)," ") -> 
A35: Kørsel i km | H35: =IF(C35="ja",IF(G35=" ",Formler!$B$1,G35*1.5)," ") -> 
G36: =IF(F36>0,HOUR(F36-E36)+MINUTE(F36-E36)/60," ") ->  | H36: =IF(C36="ja",IF(G36=" ",Formler!$B$1,G36*1.5)," ") -> 
G37: =SUM(G6:G36) -> 0 | H37: =SUM(H6:H36) -> 0 | J37: =SUM(J6:J36) -> 0 | K37: 0 | L37: 0 | M37: 0 | N37: 0 | O37: 0 | P37: 0 | Q37: 0 | R37: =SUM(R6:R36) -> 0 | S37: =SUM(S6:S36) -> 0 | T37: 0
D38: Timetal d.m. | G38: =G37+O37+P37+Q37+M37+R37+S37 -> 0 | M38: Fast timetal | P38: =Januar!P38 -> 151.6635135
D39: Oppe | G39: =N37 -> 0 | M39: Gl.saldo | P39: =Januar!P40 -> -570.084054
D40: Aften fra saldo | G40: =J37/12+Januar!G40 -> 0 | M40: Ny saldo | P40: =+L42-P38+P39 -> -721.7475675
D41: Nat | G41: =M37 -> 0 | M41: Ferie saldo | Q41: =Januar!S41 -> 10 | R41: Ny | S41: =Q41-(P37/Formler!B1)+0 -> 10
D42: Søn/helligdage | G42: =L37+H37 -> 0 | K42: I alt | L42: =SUM(G38+G39+G40+G41+G42) -> 0 | M42: Ferie/frisaldo i dage | Q42: =Januar!S42 -> 5 | R42: Ny | S42: =Q42-(R37/Formler!B1) -> 5
M43: Oms/sen saldo i dage | Q43: =Januar!S43 -> 2 | R43: Ny | S43: =Q43-(S37/Formler!B1) -> 2

Sheet Marts
G1: AFS Nat: | I1: 6 | K1: Hvis haft nat, skriv ja i kolonnen. | R1: Aften: | S1: 17:00:00 | U1: Lørdag | V1: 11:00:00 | W1: 23:00:00
U2: Søn/hellig | V2: 07:00:00 | W2: 23:00:00
A3: Lønberegning: | D3: Navn: | E3: =Februar!E3 -> Poul Prøvesen | M3: Måned: | O3: Marts | R3: År: | S3: 2020
C4: Helligd. | D4: Dato | E4: Mødt | F4: Gået | G4: Timer | H4: Hellig | I4: Nat | J4: Aften | K4: Lørdag | L4: Søndag | M4: AFS | N4: Op- | O4: Syg | P4: Ferie | Q4: Kur- | R4: Ferie | S4: Oms. | T4: Ekstra | U4: Bemærkning
A5: Månedsløn | B5: =Februar!B5 -> 99000 | E5: kl. | F5: kl. | H5: dag | J5: 17-23 | K5: 11-23 | L5: 7-23 | M5: nat | N5: pe | P5: timer | Q5: sus | R5: Fri | S5: senior | T5: timer
D6: 2020-03-01 | G6: =(IF(AND(E6>0,F6>0),HOUR(F6-E6)+MINUTE(F6-E6)/60," ")) ->  | H6: =IF(C6="ja",IF(G6=" ",Formler!$B$1,G6*1.5)," ") ->  | J6: =IF(F6>$S$1,HOUR(F6-$S$1)+MINUTE(F6-$S$1)/60," ") ->  | K6: =IF(WEEKDAY(D6,2)=6,IF(F6>$V$1,(HOUR(F6-$V$1)+MINUTE(F6-$V$1)/60)," ")," ") ->  | L6: =IF(WEEKDAY(D6,2)=7,IF(E6>0,(HOUR(F6-E6)+MINUTE(F6-E6)/60)/2," ")," ") ->  | M6: =IF(I6="ja",(IF(N6>=0,$I$1-(N6*0.75),$V$6+0))," ") -> 
A7: Stillingstillæg | B7: =Februar!B7 -> 10 | D7: 2020-03-02 | H7: =IF(C7="ja",IF(G7=" ",Formler!$B$1,G7*1.5)," ") ->  | J7: =IF(F7>$S$1,HOUR(F7-$S$1)+MINUTE(F7-$S$1)/60," ") ->  | K7: =IF(WEEKDAY(D7,2)=6,IF(F7>$V$1,(HOUR(F7-$V$1)+MINUTE(F7-$V$1)/60)," ")," ") ->  | M7: =IF(I7="ja",(IF(N7>=0,$I$1-(N7*0.75),$V$6+0))," ") -> 
D8: 2020-03-03 | H8: =IF(C8="ja",IF(G8=" ",Formler!$B$1,G8*1.5)," ") ->  | M8: =IF(I8="ja",(IF(N8>=0,$I$1-(N8*0.75),$V$6+0))," ") -> 
A9: Funktionstillæg | B9: =Februar!B9 -> 10 | D9: 2020-03-04 | H9: =IF(C9="ja",IF(G9=" ",Formler!$B$1,G9*1.5)," ") -> 
D10: 2020-03-05 | H10: =IF(C10="ja",IF(G10=" ",Formler!$B$1,G10*1.5)," ") -> 
A11: Kvallifikationstillæg | B11: =Februar!B11 -> 10 | D11: 2020-03-06 | H11: =IF(C11="ja",IF(G11=" ",Formler!$B$1,G11*1.5)," ") -> 
D12: 2020-03-07 | H12: =IF(C12="ja",IF(G12=" ",Formler!$B$1,G12*1.5)," ") -> 
A13: Grundtillæg | B13: =Februar!B13 -> 10 | D13: 2020-03-08 | H13: =IF(C13="ja",IF(G13=" ",Formler!$B$1,G13*1.5)," ") -> 
D14: 2020-03-09 | H14: =IF(C14="ja",IF(G14=" ",Formler!$B$1,G14*1.5)," ") -> 
A15: Ekstra timer _____ | B15: =T37*Formler!B7 -> 0 | D15: 2020-03-10 | H15: =IF(C15="ja",IF(G15=" ",Formler!$B$1,G15*1.5)," ") -> 
D16: 2020-03-11 | H16: =IF(C16="ja",IF(G16=" ",Formler!$B$1,G16*1.5)," ") -> 
A17: Aftentillæg | B17: =+J37*Formler!B9 -> 0 | D17: 2020-03-12 | H17: =IF(C17="ja",IF(G17=" ",Formler!$B$1,G17*1.5)," ") -> 
D18: 2020-03-13 | H18: =IF(C18="ja",IF(G18=" ",Formler!$B$1,G18*1.5)," ") -> 
A19: Lørdagstillæg | B19: =+K37*Formler!B10 -> 0 | D19: 2020-03-14 | H19: =IF(C19="ja",IF(G19=" ",Formler!$B$1,G19*1.5)," ") -> 
D20: 2020-03-15 | H20: =IF(C20="ja",IF(G20=" ",Formler!$B$1,G20*1.5)," ") -> 
A21: Fradrag | D21: 2020-03-16 | H21: =IF(C21="ja",IF(G21=" ",Formler!$B$1,G21*1.5)," ") -> 
D22: 2020-03-17 | H22: =IF(C22="ja",IF(G22=" ",Formler!$B$1,G22*1.5)," ") -> 
A23: Uniformsgodtgørelse | B23: =P38*Formler!B11 -> 279.0608648 | D23: 2020-03-18 | H23: =IF(C23="ja",IF(G23=" ",Formler!$B$1,G23*1.5)," ") -> 
D24: 2020-03-19 | H24: =IF(C24="ja",IF(G24=" ",Formler!$B$1,G24*1.5)," ") -> 
A25: Sundhedsforsikring | B25: =Februar!B25 -> 45.39 | D25: 2020-03-20 | H25: =IF(C25="ja",IF(G25=" ",Formler!$B$1,G25*1.5)," ") -> 
D26: 2020-03-21 | H26: =IF(C26="ja",IF(G26=" ",Formler!$B$1,G26*1.5)," ") -> 
A27: Multimedie | C27: =IF(D27=X21,"ja"," ") ->  | D27: 2020-03-22 | H27: =IF(C27="ja",IF(G27=" ",Formler!$B$1,G27*1.5)," ") -> 
D28: 2020-03-23 | H28: =IF(C28="ja",IF(G28=" ",Formler!$B$1,G28*1.5)," ") -> 
A29: Fradrag kost | B29: =IF(L42/Formler!B16>=37,300,IF(L42/Formler!B16>=20,225,IF(L42/Formler!B16<=19,150))) -> 150 | D29: 2020-03-24 | H29: =IF(C29="ja",IF(G29=" ",Formler!$B$1,G29*1.5)," ") -> 
D30: 2020-03-25 | H30: =IF(C30="ja",IF(G30=" ",Formler!$B$1,G30*1.5)," ") -> 
A31: Fradrag gavekasse | B31: =Februar!B31 -> 50 | D31: 2020-03-26 | H31: =IF(C31="ja",IF(G31=" ",Formler!$B$1,G31*1.5)," ") -> 
D32: 2020-03-27 | H32: =IF(C32="ja",IF(G32=" ",Formler!$B$1,G32*1.5)," ") -> 
A33: Bagvagt | D33: 2020-03-28 | H33: =IF(C33="ja",IF(G33=" ",Formler!$B$1,G33*1.5)," ") -> 
D34: 2020-03-29 | H34: =IF(C34="ja",IF(G34=" ",Formler!$B$1,G34*1.5)," ") -> 
A35: Kørsel i km | D35: 2020-03-30 | H35: =IF(C35="ja",IF(G35=" ",Formler!$B$1,G35*1.5)," ") -> 
D36: 2020-03-31 | G36: =IF(F36>0,HOUR(F36-E36)+MINUTE(F36-E36)/60," ") ->  | H36: =IF(C36="ja",IF(G36=" ",Formler!$B$1,G36*1.5)," ") -> 
G37: =SUM(G6:G36) -> 0 | H37: =SUM(H6:H36) -> 0 | J37: =SUM(J6:J36) -> 0 | K37: 0 | L37: 0 | M37: 0 | N37: 0 | O37: 0 | P37: 0 | Q37: 0 | R37: =SUM(R6:R36) -> 0 | S37: =SUM(S6:S36) -> 0 | T37: 0
D38: Timetal d.m. | G38: =G37+O37+P37+Q37+M37+R37+S37 -> 0 | M38: Fast timetal | P38: =Februar!P38 -> 151.6635135
D39: Oppe | G39: =N37 -> 0 | M39: Gl.saldo | P39: =Februar!P40 -> -721.7475675
D40: Aften fra saldo | G40: =J37/12+Februar!G40 -> 0 | M40: Ny saldo | P40: =+L42-P38+P39 -> -873.411081
D41: Nat | G41: =M37 -> 0 | M41: Ferie saldo | Q41: =Februar!S41 -> 10 | R41: Ny | S41: =Q41-(P37/Formler!B1)+0 -> 10
D42: Søn/helligdage | G42: =L37+H37 -> 0 | K42: I alt | L42: =SUM(G38+G39+G40+G41+G42) -> 0 | M42: Ferie/frisaldo i dage | Q42: =Februar!S42 -> 5 | R42: Ny | S42: =Q42-(R37/Formler!B1) -> 5
M43: Oms/sen saldo i dage | Q43: =Februar!S43 -> 2 | R43: Ny | S43: =Q43-(S37/Formler!B1) -> 2

Sheet April
G1: AFS Nat: | I1: 6 | K1: Hvis haft nat, skriv ja i kolonnen. | R1: Aften: | S1: 17:00:00 | U1: Lørdag | V1: 11:00:00 | W1: 23:00:00
U2: Søn/hellig | V2: 07:00:00 | W2: 23:00:00
A3: Lønberegning: | D3: Navn: | E3: =Marts!E3 -> Poul Prøvesen | M3: Måned: | O3: April | R3: År: | S3: 2020
C4: Helligd. | D4: Dato | E4: Mødt | F4: Gået | G4: Timer | H4: Hellig | I4: Nat | J4: Aften | K4: Lørdag | L4: Søndag | M4: AFS | N4: Op- | O4: Syg | P4: Ferie | Q4: Kur- | R4: Ferie | S4: Oms. | T4: Ekstra | U4: Bemærkning
A5: Månedsløn | B5: =Marts!B5 -> 99000 | E5: kl. | F5: kl. | H5: dag | J5: 17-23 | K5: 11-23 | L5: 7-23 | M5: nat | N5: pe | P5: timer | Q5: sus | R5: Fri | S5: senior | T5: timer
D6: 2020-04-01 | G6: =(IF(AND(E6>0,F6>0),HOUR(F6-E6)+MINUTE(F6-E6)/60," ")) ->  | H6: =IF(C6="ja",IF(G6=" ",Formler!$B$1,G6*1.5)," ") ->  | J6: =IF(F6>$S$1,HOUR(F6-$S$1)+MINUTE(F6-$S$1)/60," ") ->  | K6: =IF(WEEKDAY(D6,2)=6,IF(F6>$V$1,(HOUR(F6-$V$1)+MINUTE(F6-$V$1)/60)," ")," ") ->  | L6: =IF(WEEKDAY(D6,2)=7,IF(E6>0,(HOUR(F6-E6)+MINUTE(F6-E6)/60)/2," ")," ") ->  | M6: =IF(I6="ja",(IF(N6>=0,$I$1-(N6*0.75),$V$5+0))," ") -> 
A7: Stillingstillæg | B7: =Marts!B7 -> 10 | D7: 2020-04-02 | H7: =IF(C7="ja",IF(G7=" ",Formler!$B$1,G7*1.5)," ") ->  | J7: =IF(F7>$S$1,HOUR(F7-$S$1)+MINUTE(F7-$S$1)/60," ") ->  | K7: =IF(WEEKDAY(D7,2)=6,IF(F7>$V$1,(HOUR(F7-$V$1)+MINUTE(F7-$V$1)/60)," ")," ") ->  | M7: =IF(I7="ja",(IF(N7>=0,$I$1-(N7*0.75),$V$5+0))," ") -> 
D8: 2020-04-03 | H8: =IF(C8="ja",IF(G8=" ",Formler!$B$1,G8*1.5)," ") -> 
A9: Funktionstillæg | B9: =Marts!B9 -> 10 | D9: 2020-04-04 | H9: =IF(C9="ja",IF(G9=" ",Formler!$B$1,G9*1.5)," ") -> 
D10: 2020-04-05 | H10: =IF(C10="ja",IF(G10=" ",Formler!$B$1,G10*1.5)," ") -> 
A11: Kvallifikationstillæg | B11: =Marts!B11 -> 10 | D11: 2020-04-06 | H11: =IF(C11="ja",IF(G11=" ",Formler!$B$1,G11*1.5)," ") -> 
D12: 2020-04-07 | H12: =IF(C12="ja",IF(G12=" ",Formler!$B$1,G12*1.5)," ") -> 
A13: Grundtillæg | B13: =Marts!B13 -> 10 | D13: 2020-04-08 | H13: =IF(C13="ja",IF(G13=" ",Formler!$B$1,G13*1.5)," ") -> 
C14: ja | D14: 2020-04-09 | H14: =IF(C14="ja",IF(G14=" ",Formler!$B$1,G14*1.5)," ") -> 7
A15: Ekstra timer _____ | B15: =T37*Formler!B7 -> 0 | C15: ja | D15: 2020-04-10 | H15: =IF(C15="ja",IF(G15=" ",Formler!$B$1,G15*1.5)," ") -> 7
D16: 2020-04-11 | H16: =IF(C16="ja",IF(G16=" ",Formler!$B$1,G16*1.5)," ") -> 
A17: Aftentillæg | B17: =+J37*Formler!B9 -> 0 | C17: ja | D17: 2020-04-12 | H17: =IF(C17="ja",IF(G17=" ",Formler!$B$1,G17*1.5)," ") -> 7
C18: ja | D18: 2020-04-13 | H18: =IF(C18="ja",IF(G18=" ",Formler!$B$1,G18*1.5)," ") -> 7
A19: Lørdagstillæg | B19: =+K37*Formler!B10 -> 0 | D19: 2020-04-14 | H19: =IF(C19="ja",IF(G19=" ",Formler!$B$1,G19*1.5)," ") -> 
D20: 2020-04-15 | H20: =IF(C20="ja",IF(G20=" ",Formler!$B$1,G20*1.5)," ") -> 
A21: Fradrag | D21: 2020-04-16 | H21: =IF(C21="ja",IF(G21=" ",Formler!$B$1,G21*1.5)," ") -> 
D22: 2020-04-17 | H22: =IF(C22="ja",IF(G22=" ",Formler!$B$1,G22*1.5)," ") -> 
A23: Uniformsgodtgørelse | B23: =P38*Formler!B11 -> 279.0608648 | D23: 2020-04-18 | H23: =IF(C23="ja",IF(G23=" ",Formler!$B$1,G23*1.5)," ") -> 
D24: 2020-04-19 | H24: =IF(C24="ja",IF(G24=" ",Formler!$B$1,G24*1.5)," ") -> 
A25: Sundhedsforsikring | B25: =Marts!B25 -> 45.39 | D25: 2020-04-20 | H25: =IF(C25="ja",IF(G25=" ",Formler!$B$1,G25*1.5)," ") -> 
D26: 2020-04-21 | H26: =IF(C26="ja",IF(G26=" ",Formler!$B$1,G26*1.5)," ") -> 
A27: Multimedie | C27: =IF(D27=X21,"ja"," ") ->  | D27: 2020-04-22 | H27: =IF(C27="ja",IF(G27=" ",Formler!$B$1,G27*1.5)," ") -> 
D28: 2020-04-23 | H28: =IF(C28="ja",IF(G28=" ",Formler!$B$1,G28*1.5)," ") -> 
A29: Fradrag kost | B29: =IF(L42/Formler!B16>=37,300,IF(L42/Formler!B16>=20,225,IF(L42/Formler!B16<=19,150))) -> 150 | D29: 2020-04-24 | H29: =IF(C29="ja",IF(G29=" ",Formler!$B$1,G29*1.5)," ") -> 
D30: 2020-04-25 | H30: =IF(C30="ja",IF(G30=" ",Formler!$B$1,G30*1.5)," ") -> 
A31: Fradrag gavekasse | B31: =Marts!B31 -> 50 | D31: 2020-04-26 | H31: =IF(C31="ja",IF(G31=" ",Formler!$B$1,G31*1.5)," ") -> 
D32: 2020-04-27 | H32: =IF(C32="ja",IF(G32=" ",Formler!$B$1,G32*1.5)," ") -> 
A33: Bagvagt | D33: 2020-04-28 | H33: =IF(C33="ja",IF(G33=" ",Formler!$B$1,G33*1.5)," ") -> 
D34: 2020-04-29 | H34: =IF(C34="ja",IF(G34=" ",Formler!$B$1,G34*1.5)," ") -> 
A35: Kørsel i km | D35: 2020-04-30 | H35: =IF(C35="ja",IF(G35=" ",Formler!$B$1,G35*1.5)," ") -> 
G36: =IF(F36>0,HOUR(F36-E36)+MINUTE(F36-E36)/60," ") ->  | H36: =IF(C36="ja",IF(G36=" ",Formler!$B$1,G36*1.5)," ") -> 
G37: =SUM(G6:G36) -> 0 | H37: =SUM(H6:H36) -> 28 | J37: =SUM(J6:J36) -> 0 | K37: 0 | L37: 0 | M37: 0 | N37: 0 | O37: 0 | P37: 0 | Q37: 0 | R37: =SUM(R6:R36) -> 0 | S37: =SUM(S6:S36) -> 0 | T37: 0
D38: Timetal d.m. | G38: =G37+O37+P37+Q37+M37+R37+S37 -> 0 | M38: Fast timetal | P38: =Marts!P38 -> 151.6635135
D39: Oppe | G39: =N37 -> 0 | M39: Gl.saldo | P39: =Marts!P40 -> -873.411081
D40: Aften fra saldo | G40: =J37/12+Marts!G40 -> 0 | M40: Ny saldo | P40: =+L42-P38+P39 -> -997.0745945
D41: Nat | G41: =M37 -> 0 | M41: Ferie saldo | Q41: =Marts!S41 -> 10 | R41: Ny | S41: =Q41-(P37/Formler!B1)+0 -> 10
D42: Søn/helligdage | G42: =L37+H37 -> 28 | K42: I alt | L42: =SUM(G38+G39+G40+G41+G42) -> 28 | M42: Ferie/frisaldo i dage | Q42: =Marts!S42 -> 5 | R42: ny | S42: =Q42-(R37/Formler!B1) -> 5
M43: Oms/sen saldo i dage | Q43: =Marts!S43 -> 2 | R43: ny | S43: =Q43-(S37/Formler!B1) -> 2

Sheet Maj
G1: AFS Nat: | I1: 6 | K1: Hvis haft nat, skriv ja i kolonnen. | R1: Aften: | S1: 17:00:00 | U1: Lørdag | V1: 11:00:00 | W1: 23:00:00
U2: Søn/hellig | V2: 07:00:00 | W2: 23:00:00
A3: Lønberegning: | D3: Navn: | E3: =April!E3 -> Poul Prøvesen | M3: Måned: | O3: Maj | R3: År: | S3: 2020
C4: Helligd. | D4: Dato | E4: Mødt | F4: Gået | G4: Timer | H4: Hellig | I4: Nat | J4: Aften | K4: Lørdag | L4: Søndag | M4: AFS | N4: Op- | O4: Syg | P4: Ferie | Q4: Kur- | R4: Ferie | S4: Oms. | T4: Ekstra | U4: Bemærkning
A5: Månedsløn | B5: =April!B5 -> 99000 | E5: kl. | F5: kl. | H5: dag | J5: 17-23 | K5: 11-23 | L5: 7-23 | M5: nat | N5: pe | P5: timer | Q5: sus | R5: Fri | S5: senior | T5: timer
C6: ja | D6: 2020-05-01 | G6: =(IF(AND(E6>0,F6>0),HOUR(F6-E6)+MINUTE(F6-E6)/60," ")) ->  | H6: =IF(C6="ja",IF(G6=" ",Formler!$B$1,G6*1.5)," ") -> 7 | J6: =IF(F6>$S$1,HOUR(F6-$S$1)+MINUTE(F6-$S$1)/60," ") ->  | K6: =IF(WEEKDAY(D6,2)=6,IF(F6>$V$1,(HOUR(F6-$V$1)+MINUTE(F6-$V$1)/60)," ")," ") ->  | L6: =IF(WEEKDAY(D6,2)=7,IF(E6>0,(HOUR(F6-E6)+MINUTE(F6-E6)/60)/2," ")," ") ->  | M6: =IF(I6="ja",(IF(N6>=0,$I$1-(N6*0.75),$V$5+0))," ") -> 
A7: Stillingstillæg | B7: =April!B7 -> 10 | D7: 2020-05-02 | H7: =IF(C7="ja",IF(G7=" ",Formler!$B$1,G7*1.5)," ") ->  | J7: =IF(F7>$S$1,HOUR(F7-$S$1)+MINUTE(F7-$S$1)/60," ") ->  | K7: =IF(WEEKDAY(D7,2)=6,IF(F7>$V$1,(HOUR(F7-$V$1)+MINUTE(F7-$V$1)/60)," ")," ") ->  | M7: =IF(I7="ja",(IF(N7>=0,$I$1-(N7*0.75),$V$5+0))," ") -> 
D8: 2020-05-03 | H8: =IF(C8="ja",IF(G8=" ",Formler!$B$1,G8*1.5)," ") -> 
A9: Funktionstillæg | B9: =April!B9 -> 10 | D9: 2020-05-04 | H9: =IF(C9="ja",IF(G9=" ",Formler!$B$1,G9*1.5)," ") -> 
D10: 2020-05-05 | H10: =IF(C10="ja",IF(G10=" ",Formler!$B$1,G10*1.5)," ") -> 
A11: Kvallifikationstillæg | B11: =April!B11 -> 10 | D11: 2020-05-06 | H11: =IF(C11="ja",IF(G11=" ",Formler!$B$1,G11*1.5)," ") -> 
D12: 2020-05-07 | H12: =IF(C12="ja",IF(G12=" ",Formler!$B$1,G12*1.5)," ") -> 
A13: Grundtillæg | B13: =April!B13 -> 10 | C13: ja | D13: 2020-05-08 | H13: =IF(C13="ja",IF(G13=" ",Formler!$B$1,G13*1.5)," ") -> 7
D14: 2020-05-09 | H14: =IF(C14="ja",IF(G14=" ",Formler!$B$1,G14*1.5)," ") -> 
A15: Ekstra timer _____ | B15: =T37*Formler!B7 -> 0 | D15: 2020-05-10 | H15: =IF(C15="ja",IF(G15=" ",Formler!$B$1,G15*1.5)," ") -> 
D16: 2020-05-11 | H16: =IF(C16="ja",IF(G16=" ",Formler!$B$1,G16*1.5)," ") -> 
A17: Aftentillæg | B17: =+J37*Formler!B9 -> 0 | D17: 2020-05-12 | H17: =IF(C17="ja",IF(G17=" ",Formler!$B$1,G17*1.5)," ") -> 
D18: 2020-05-13 | H18: =IF(C18="ja",IF(G18=" ",Formler!$B$1,G18*1.5)," ") -> 
A19: Lørdagstillæg | B19: =+K37*Formler!B10 -> 0 | D19: 2020-05-14 | H19: =IF(C19="ja",IF(G19=" ",Formler!$B$1,G19*1.5)," ") -> 
D20: 2020-05-15 | H20: =IF(C20="ja",IF(G20=" ",Formler!$B$1,G20*1.5)," ") -> 
A21: Fradrag | D21: 2020-05-16 | H21: =IF(C21="ja",IF(G21=" ",Formler!$B$1,G21*1.5)," ") -> 
D22: 2020-05-17 | H22: =IF(C22="ja",IF(G22=" ",Formler!$B$1,G22*1.5)," ") -> 
A23: Uniformsgodtgørelse | B23: =P38*Formler!B11 -> 279.0608648 | D23: 2020-05-18 | H23: =IF(C23="ja",IF(G23=" ",Formler!$B$1,G23*1.5)," ") -> 
D24: 2020-05-19 | H24: =IF(C24="ja",IF(G24=" ",Formler!$B$1,G24*1.5)," ") -> 
A25: Sundhedsforsikring | B25: =April!B25 -> 45.39 | D25: 2020-05-20 | H25: =IF(C25="ja",IF(G25=" ",Formler!$B$1,G25*1.5)," ") -> 
C26: ja | D26: 2020-05-21 | H26: =IF(C26="ja",IF(G26=" ",Formler!$B$1,G26*1.5)," ") -> 7
A27: Multimedie | D27: 2020-05-22 | H27: =IF(C27="ja",IF(G27=" ",Formler!$B$1,G27*1.5)," ") -> 
D28: 2020-05-23 | H28: =IF(C28="ja",IF(G28=" ",Formler!$B$1,G28*1.5)," ") -> 
A29: Fradrag kost | B29: =IF(L42/Formler!B16>=37,300,IF(L42/Formler!B16>=20,225,IF(L42/Formler!B16<=19,150))) -> 150 | D29: 2020-05-24 | H29: =IF(C29="ja",IF(G29=" ",Formler!$B$1,G29*1.5)," ") -> 
D30: 2020-05-25 | H30: =IF(C30="ja",IF(G30=" ",Formler!$B$1,G30*1.5)," ") -> 
A31: Fradrag gavekasse | B31: =April!B31 -> 50 | D31: 2020-05-26 | H31: =IF(C31="ja",IF(G31=" ",Formler!$B$1,G31*1.5)," ") -> 
D32: 2020-05-27 | H32: =IF(C32="ja",IF(G32=" ",Formler!$B$1,G32*1.5)," ") -> 
A33: Bagvagt | D33: 2020-05-28 | H33: =IF(C33="ja",IF(G33=" ",Formler!$B$1,G33*1.5)," ") -> 
D34: 2020-05-29 | H34: =IF(C34="ja",IF(G34=" ",Formler!$B$1,G34*1.5)," ") -> 
A35: Kørsel i km | D35: 2020-05-30 | H35: =IF(C35="ja",IF(G35=" ",Formler!$B$1,G35*1.5)," ") -> 
C36: ja | D36: 2020-05-31 | G36: =IF(F36>0,HOUR(F36-E36)+MINUTE(F36-E36)/60," ") ->  | H36: =IF(C36="ja",IF(G36=" ",Formler!$B$1,G36*1.5)," ") -> 7
G37: =SUM(G6:G36) -> 0 | H37: =SUM(H6:H36) -> 28 | J37: =SUM(J6:J36) -> 0 | K37: 0 | L37: 0 | M37: 0 | N37: 0 | O37: 0 | P37: 0 | Q37: 0 | R37: =SUM(R6:R36) -> 0 | S37: =SUM(S6:S36) -> 0 | T37: 0
D38: Timetal d.m. | G38: =G37+O37+P37+Q37+M37+R37+S37 -> 0 | M38: Fast timetal | P38: =April!P38 -> 151.6635135
D39: Oppe | G39: =N37 -> 0 | M39: Gl.saldo | P39: =April!P40 -> -997.0745945
D40: Aften fra saldo | G40: =J37/12+April!G40 -> 0 | M40: Ny saldo | P40: =+L42-P38+P39 -> -1120.738108
D41: Nat | G41: =M37 -> 0 | M41: Ferie saldo | Q41: =April!S41 -> 10 | R41: Ny | S41: =Q41-(P37/Formler!B1)+0 -> 10
D42: Søn/helligdage | G42: =L37+H37 -> 28 | K42: I alt | L42: =SUM(G38+G39+G40+G41+G42) -> 28 | M42: Ferie/frisaldo i dage | Q42: =April!S42 -> 5 | R42: Ny | S42: =Q42-(R37/Formler!B1)+5 -> 10
M43: Oms/sen saldo i dage | Q43: =April!S43 -> 2 | R43: Ny | S43: =Q43-(S37/Formler!B1) -> 2

Sheet Juni
G1: AFS Nat: | I1: 6 | K1: Hvis haft nat, skriv ja i kolonnen. | R1: Aften: | S1: 17:00:00 | U1: Lørdag | V1: 11:00:00 | W1: 23:00:00
U2: Søn/hellig | V2: 07:00:00 | W2: 23:00:00
A3: Lønberegning: | D3: Navn: | E3: =Maj!E3 -> Poul Prøvesen | M3: Måned: | O3: Juni | R3: År: | S3: 2020
C4: Helligd. | D4: Dato | E4: Mødt | F4: Gået | G4: Timer | H4: Hellig | I4: Nat | J4: Aften | K4: Lørdag | L4: Søndag | M4: AFS | N4: Op- | O4: Syg | P4: Ferie | Q4: Kur- | R4: Ferie | S4: Oms. | T4: Ekstra | U4: Bemærkning
A5: Månedsløn | B5: =Maj!B5 -> 99000 | E5: kl. | F5: kl. | H5: dag | J5: 17-23 | K5: 11-23 | L5: 7-23 | M5: nat | N5: pe | P5: timer | Q5: sus | R5: Fri | S5: senior | T5: timer
C6: ja | D6: 2020-06-01 | G6: =(IF(AND(E6>0,F6>0),HOUR(F6-E6)+MINUTE(F6-E6)/60," ")) ->  | H6: =IF(C6="ja",IF(G6=" ",Formler!$B$1,G6*1.5)," ") -> 7 | J6: =IF(F6>$S$1,HOUR(F6-$S$1)+MINUTE(F6-$S$1)/60," ") ->  | K6: =IF(WEEKDAY(D6,2)=6,IF(F6>$V$1,(HOUR(F6-$V$1)+MINUTE(F6-$V$1)/60)," ")," ") ->  | L6: =IF(WEEKDAY(D6,2)=7,IF(E6>0,(HOUR(F6-E6)+MINUTE(F6-E6)/60)/2," ")," ") ->  | M6: =IF(I6="ja",(IF(N6>=0,$I$1-(N6*0.75),$V$5+0))," ") -> 
A7: Stillingstillæg | B7: =Maj!B7 -> 10 | D7: 2020-06-02 | H7: =IF(C7="ja",IF(G7=" ",Formler!$B$1,G7*1.5)," ") ->  | J7: =IF(F7>$S$1,HOUR(F7-$S$1)+MINUTE(F7-$S$1)/60," ") ->  | K7: =IF(WEEKDAY(D7,2)=6,IF(F7>$V$1,(HOUR(F7-$V$1)+MINUTE(F7-$V$1)/60)," ")," ") ->  | M7: =IF(I7="ja",(IF(N7>=0,$I$1-(N7*0.75),$V$5+0))," ") -> 
D8: 2020-06-03 | H8: =IF(C8="ja",IF(G8=" ",Formler!$B$1,G8*1.5)," ") -> 
A9: Funktionstillæg | B9: =Maj!B9 -> 10 | D9: 2020-06-04 | H9: =IF(C9="ja",IF(G9=" ",Formler!$B$1,G9*1.5)," ") -> 
D10: 2020-06-05 | H10: =IF(C10="ja",IF(G10=" ",Formler!$B$1,G10*1.5)," ") -> 
A11: Kvallifikationstillæg | B11: =Maj!B11 -> 10 | C11: ja | D11: 2020-06-06 | H11: =IF(C11="ja",IF(G11=" ",Formler!$B$1,G11*1.5)," ") -> 7
D12: 2020-06-07 | H12: =IF(C12="ja",IF(G12=" ",Formler!$B$1,G12*1.5)," ") -> 
A13: Grundtillæg | B13: =Maj!B13 -> 10 | D13: 2020-06-08 | H13: =IF(C13="ja",IF(G13=" ",Formler!$B$1,G13*1.5)," ") -> 
D14: 2020-06-09 | H14: =IF(C14="ja",IF(G14=" ",Formler!$B$1,G14*1.5)," ") -> 
A15: Ekstra timer _____ | B15: =T37*Formler!B7 -> 0 | D15: 2020-06-10 | H15: =IF(C15="ja",IF(G15=" ",Formler!$B$1,G15*1.5)," ") -> 
D16: 2020-06-11 | H16: =IF(C16="ja",IF(G16=" ",Formler!$B$1,G16*1.5)," ") -> 
A17: Aftentillæg | B17: =+J37*Formler!B9 -> 0 | D17: 2020-06-12 | H17: =IF(C17="ja",IF(G17=" ",Formler!$B$1,G17*1.5)," ") -> 
D18: 2020-06-13 | H18: =IF(C18="ja",IF(G18=" ",Formler!$B$1,G18*1.5)," ") -> 
A19: Lørdagstillæg | B19: =+K37*Formler!B10 -> 0 | D19: 2020-06-14 | H19: =IF(C19="ja",IF(G19=" ",Formler!$B$1,G19*1.5)," ") -> 
D20: 2020-06-15 | H20: =IF(C20="ja",IF(G20=" ",Formler!$B$1,G20*1.5)," ") -> 
A21: Fradrag | D21: 2020-06-16 | H21: =IF(C21="ja",IF(G21=" ",Formler!$B$1,G21*1.5)," ") -> 
D22: 2020-06-17 | H22: =IF(C22="ja",IF(G22=" ",Formler!$B$1,G22*1.5)," ") -> 
A23: Uniformsgodtgørelse | B23: =P38*Formler!B11 -> 279.0608648 | D23: 2020-06-18 | H23: =IF(C23="ja",IF(G23=" ",Formler!$B$1,G23*1.5)," ") -> 
D24: 2020-06-19 | H24: =IF(C24="ja",IF(G24=" ",Formler!$B$1,G24*1.5)," ") -> 
A25: Sundhedsforsikring | B25: =Maj!B25 -> 45.39 | D25: 2020-06-20 | H25: =IF(C25="ja",IF(G25=" ",Formler!$B$1,G25*1.5)," ") -> 
D26: 2020-06-21 | H26: =IF(C26="ja",IF(G26=" ",Formler!$B$1,G26*1.5)," ") -> 
A27: Multimedie | D27: 2020-06-22 | H27: =IF(C27="ja",IF(G27=" ",Formler!$B$1,G27*1.5)," ") -> 
D28: 2020-06-23 | H28: =IF(C28="ja",IF(G28=" ",Formler!$B$1,G28*1.5)," ") -> 
A29: Fradrag kost | B29: =IF(L42/Formler!B16>=37,300,IF(L42/Formler!B16>=20,225,IF(L42/Formler!B16<=19,150))) -> 150 | D29: 2020-06-24 | H29: =IF(C29="ja",IF(G29=" ",Formler!$B$1,G29*1.5)," ") -> 
D30: 2020-06-25 | H30: =IF(C30="ja",IF(G30=" ",Formler!$B$1,G30*1.5)," ") -> 
A31: Fradrag gavekasse | B31: =Maj!B31 -> 50 | D31: 2020-06-26 | H31: =IF(C31="ja",IF(G31=" ",Formler!$B$1,G31*1.5)," ") -> 
D32: 2020-06-27 | H32: =IF(C32="ja",IF(G32=" ",Formler!$B$1,G32*1.5)," ") -> 
A33: Bagvagt | D33: 2020-06-28 | H33: =IF(C33="ja",IF(G33=" ",Formler!$B$1,G33*1.5)," ") -> 
D34: 2020-06-29 | H34: =IF(C34="ja",IF(G34=" ",Formler!$B$1,G34*1.5)," ") -> 
A35: Kørsel i km | D35: 2020-06-30 | H35: =IF(C35="ja",IF(G35=" ",Formler!$B$1,G35*1.5)," ") -> 
G36: =IF(F36>0,HOUR(F36-E36)+MINUTE(F36-E36)/60," ") ->  | H36: =IF(C36="ja",IF(G36=" ",Formler!$B$1,G36*1.5)," ") -> 
G37: =SUM(G6:G36) -> 0 | H37: =SUM(H6:H36) -> 14 | J37: =SUM(J6:J36) -> 0 | K37: 0 | L37: 0 | M37: 0 | N37: 0 | O37: 0 | P37: 0 | Q37: 0 | R37: =SUM(R6:R36) -> 0 | S37: =SUM(S6:S36) -> 0 | T37: 0
D38: Timetal d.m. | G38: =G37+O37+P37+Q37+M37+R37+S37 -> 0 | M38: Fast timetal | P38: =Maj!P38 -> 151.6635135
D39: Oppe | G39: =N37 -> 0 | M39: Gl.saldo | P39: =Maj!P40 -> -1120.738108
D40: Aften fra saldo | G40: =J37/12+Maj!G40 -> 0 | M40: Ny saldo | P40: =+L42-P38+P39 -> -1258.401622
D41: Nat | G41: =M37 -> 0 | M41: Ferie saldo | Q41: =Maj!S41 -> 10 | R41: Ny | S41: =Q41-(P37/Formler!B1)+0 -> 10
D42: Søn/helligdage | G42: =L37+H37 -> 14 | K42: I alt | L42: =SUM(G38+G39+G40+G41+G42) -> 14 | M42: Ferie/frisaldo i dage | Q42: =Maj!S42 -> 10 | R42: Ny | S42: =Q42-(R37/Formler!B1) -> 10
M43: Oms/sen saldo i dage | Q43: =Maj!S43 -> 2 | R43: Ny | S43: =Q43-(S37/Formler!B1) -> 2

Sheet Juli
G1: AFS Nat: | I1: 6 | K1: Hvis haft nat, skriv ja i kolonnen. | R1: Aften: | S1: 17:00:00 | U1: Lørdag | V1: 11:00:00 | W1: 23:00:00
U2: Søn/hellig | V2: 07:00:00 | W2: 23:00:00
A3: Lønberegning: | D3: Navn: | E3: =Juni!E3 -> Poul Prøvesen | M3: Måned: | O3: Juli | R3: År: | S3: 2020
C4: Helligd. | D4: Dato | E4: Mødt | F4: Gået | G4: Timer | H4: Hellig | I4: Nat | J4: Aften | K4: Lørdag | L4: Søndag | M4: AFS | N4: Op- | O4: Syg | P4: Ferie | Q4: Kur- | R4: Ferie | S4: Oms. | T4: Ekstra | U4: Bemærkning
A5: Månedsløn | B5: =Juni!B5 -> 99000 | E5: kl. | F5: kl. | H5: dag | J5: 17-23 | K5: 11-23 | L5: 7-23 | M5: nat | N5: pe | P5: timer | Q5: sus | R5: Fri | S5: senior | T5: timer
D6: 2020-07-01 | G6: =(IF(AND(E6>0,F6>0),HOUR(F6-E6)+MINUTE(F6-E6)/60," ")) ->  | H6: =IF(C6="ja",IF(G6=" ",Formler!$B$1,G6*1.5)," ") ->  | J6: =IF(F6>$S$1,HOUR(F6-$S$1)+MINUTE(F6-$S$1)/60," ") ->  | K6: =IF(WEEKDAY(D6,2)=6,IF(F6>$V$1,(HOUR(F6-$V$1)+MINUTE(F6-$V$1)/60)," ")," ") ->  | L6: =IF(WEEKDAY(D6,2)=7,IF(E6>0,(HOUR(F6-E6)+MINUTE(F6-E6)/60)/2," ")," ") ->  | M6: =IF(I6="ja",(IF(N6>=0,$I$1-(N6*0.75),$V$5+0))," ") -> 
A7: Stillingstillæg | B7: =Juni!B7 -> 10 | D7: 2020-07-02 | H7: =IF(C7="ja",IF(G7=" ",Formler!$B$1,G7*1.5)," ") ->  | J7: =IF(F7>$S$1,HOUR(F7-$S$1)+MINUTE(F7-$S$1)/60," ") ->  | K7: =IF(WEEKDAY(D7,2)=6,IF(F7>$V$1,(HOUR(F7-$V$1)+MINUTE(F7-$V$1)/60)," ")," ") ->  | M7: =IF(I7="ja",(IF(N7>=0,$I$1-(N7*0.75),$V$5+0))," ") -> 
D8: 2020-07-03 | H8: =IF(C8="ja",IF(G8=" ",Formler!$B$1,G8*1.5)," ") -> 
A9: Funktionstillæg | B9: =Juni!B9 -> 10 | D9: 2020-07-04 | H9: =IF(C9="ja",IF(G9=" ",Formler!$B$1,G9*1.5)," ") -> 
D10: 2020-07-05 | H10: =IF(C10="ja",IF(G10=" ",Formler!$B$1,G10*1.5)," ") -> 
A11: Kvallifikationstillæg | B11: =Juni!B11 -> 10 | D11: 2020-07-06 | H11: =IF(C11="ja",IF(G11=" ",Formler!$B$1,G11*1.5)," ") -> 
D12: 2020-07-07 | H12: =IF(C12="ja",IF(G12=" ",Formler!$B$1,G12*1.5)," ") -> 
A13: Grundtillæg | B13: =Juni!B13 -> 10 | D13: 2020-07-08 | H13: =IF(C13="ja",IF(G13=" ",Formler!$B$1,G13*1.5)," ") -> 
D14: 2020-07-09 | H14: =IF(C14="ja",IF(G14=" ",Formler!$B$1,G14*1.5)," ") -> 
A15: Ekstra timer _____ | B15: =T37*Formler!B7 -> 0 | D15: 2020-07-10 | H15: =IF(C15="ja",IF(G15=" ",Formler!$B$1,G15*1.5)," ") -> 
D16: 2020-07-11 | H16: =IF(C16="ja",IF(G16=" ",Formler!$B$1,G16*1.5)," ") -> 
A17: Aftentillæg | B17: =+J37*Formler!B9 -> 0 | D17: 2020-07-12 | H17: =IF(C17="ja",IF(G17=" ",Formler!$B$1,G17*1.5)," ") -> 
D18: 2020-07-13 | H18: =IF(C18="ja",IF(G18=" ",Formler!$B$1,G18*1.5)," ") -> 
A19: Lørdagstillæg | B19: =+K37*Formler!B10 -> 0 | D19: 2020-07-14 | H19: =IF(C19="ja",IF(G19=" ",Formler!$B$1,G19*1.5)," ") -> 
D20: 2020-07-15 | H20: =IF(C20="ja",IF(G20=" ",Formler!$B$1,G20*1.5)," ") -> 
A21: Fradrag | D21: 2020-07-16 | H21: =IF(C21="ja",IF(G21=" ",Formler!$B$1,G21*1.5)," ") -> 
D22: 2020-07-17 | H22: =IF(C22="ja",IF(G22=" ",Formler!$B$1,G22*1.5)," ") -> 
A23: Uniformsgodtgørelse | B23: =P38*Formler!B11 -> 279.0608648 | D23: 2020-07-18 | H23: =IF(C23="ja",IF(G23=" ",Formler!$B$1,G23*1.5)," ") -> 
D24: 2020-07-19 | H24: =IF(C24="ja",IF(G24=" ",Formler!$B$1,G24*1.5)," ") -> 
A25: Sundhedsforsikring | B25: =Juni!B25 -> 45.39 | D25: 2020-07-20 | H25: =IF(C25="ja",IF(G25=" ",Formler!$B$1,G25*1.5)," ") -> 
D26: 2020-07-21 | H26: =IF(C26="ja",IF(G26=" ",Formler!$B$1,G26*1.5)," ") -> 
A27: Multimedie | D27: 2020-07-22 | H27: =IF(C27="ja",IF(G27=" ",Formler!$B$1,G27*1.5)," ") -> 
D28: 2020-07-23 | H28: =IF(C28="ja",IF(G28=" ",Formler!$B$1,G28*1.5)," ") -> 
A29: Fradrag kost | B29: =IF(L42/Formler!B16>=37,300,IF(L42/Formler!B16>=20,225,IF(L42/Formler!B16<=19,150))) -> 150 | D29: 2020-07-24 | H29: =IF(C29="ja",IF(G29=" ",Formler!$B$1,G29*1.5)," ") -> 
D30: 2020-07-25 | H30: =IF(C30="ja",IF(G30=" ",Formler!$B$1,G30*1.5)," ") -> 
A31: Fradrag gavekasse | B31: =Juni!B31 -> 50 | D31: 2020-07-26 | H31: =IF(C31="ja",IF(G31=" ",Formler!$B$1,G31*1.5)," ") -> 
D32: 2020-07-27 | H32: =IF(C32="ja",IF(G32=" ",Formler!$B$1,G32*1.5)," ") -> 
A33: Bagvagt | D33: 2020-07-28 | H33: =IF(C33="ja",IF(G33=" ",Formler!$B$1,G33*1.5)," ") -> 
D34: 2020-07-29 | H34: =IF(C34="ja",IF(G34=" ",Formler!$B$1,G34*1.5)," ") -> 
A35: Kørsel i km | D35: 2020-07-30 | H35: =IF(C35="ja",IF(G35=" ",Formler!$B$1,G35*1.5)," ") -> 
D36: 2020-07-31 | G36: =IF(F36>0,HOUR(F36-E36)+MINUTE(F36-E36)/60," ") ->  | H36: =IF(C36="ja",IF(G36=" ",Formler!$B$1,G36*1.5)," ") -> 
G37: =SUM(G6:G36) -> 0 | H37: =SUM(H6:H36) -> 0 | J37: =SUM(J6:J36) -> 0 | K37: 0 | L37: 0 | M37: 0 | N37: 0 | O37: 0 | P37: 0 | Q37: 0 | R37: =SUM(R6:R36) -> 0 | S37: =SUM(S6:S36) -> 0 | T37: 0
D38: Timetal d.m. | G38: =G37+O37+P37+Q37+M37+R37+S37 -> 0 | M38: Fast timetal | P38: =Juni!P38 -> 151.6635135
D39: Oppe | G39: =N37 -> 0 | M39: Gl.saldo | P39: =Juni!P40 -> -1258.401622
D40: Aften fra saldo | G40: =J37/12+Juni!G40 -> 0 | M40: Ny saldo | P40: =+L42-P38+P39 -> -1410.065135
D41: Nat | G41: =M37 -> 0 | M41: Ferie saldo | Q41: =Juni!S41 -> 10 | R41: Ny | S41: =Q41-(P37/Formler!B1)+0 -> 10
D42: Søn/helligdage | G42: =L37+H37 -> 0 | K42: I alt | L42: =SUM(G38+G39+G40+G41+G42) -> 0 | M42: Ferie/frisaldo i dage | Q42: =Juni!S42 -> 10 | R42: Ny | S42: =Q42-(R37/Formler!B1) -> 10
M43: Oms/sen saldo i dage | Q43: =Juni!S43 -> 2 | R43: Ny | S43: =Q43-(S37/Formler!B1) -> 2

Sheet August
G1: AFS Nat: | I1: 6 | K1: Hvis haft nat, skriv ja i kolonnen. | R1: Aften: | S1: 17:00:00 | U1: Lørdag | V1: 11:00:00 | W1: 23:00:00
U2: Søn/hellig | V2: 07:00:00 | W2: 23:00:00
A3: Lønberegning: | D3: Navn: | E3: =Juli!E3 -> Poul Prøvesen | M3: Måned: | O3: August | R3: År: | S3: 2020
C4: Helligd. | D4: Dato | E4: Mødt | F4: Gået | G4: Timer | H4: Hellig | I4: Nat | J4: Aften | K4: Lørdag | L4: Søndag | M4: AFS | N4: Op- | O4: Syg | P4: Ferie | Q4: Kur- | R4: Ferie | S4: Oms. | T4: Ekstra | U4: Bemærkning
A5: Månedsløn | B5: =Juli!B5 -> 99000 | E5: kl. | F5: kl. | H5: dag | J5: 17-23 | K5: 11-23 | L5: 7-23 | M5: nat | N5: pe | P5: timer | Q5: sus | R5: Fri | S5: senior | T5: timer
D6: 2020-08-01 | G6: =(IF(AND(E6>0,F6>0),HOUR(F6-E6)+MINUTE(F6-E6)/60," ")) ->  | H6: =IF(C6="ja",IF(G6=" ",Formler!$B$1,G6*1.5)," ") ->  | J6: =IF(F6>$S$1,HOUR(F6-$S$1)+MINUTE(F6-$S$1)/60," ") ->  | K6: =IF(WEEKDAY(D6,2)=6,IF(F6>$V$1,(HOUR(F6-$V$1)+MINUTE(F6-$V$1)/60)," ")," ") ->  | L6: =IF(WEEKDAY(D6,2)=7,IF(E6>0,(HOUR(F6-E6)+MINUTE(F6-E6)/60)/2," ")," ") ->  | M6: =IF(I6="ja",(IF(N6>=0,$I$1-(N6*0.75),$V$5+0))," ") -> 
A7: Stillingstillæg | B7: =Juli!B7 -> 10 | D7: 2020-08-02 | H7: =IF(C7="ja",IF(G7=" ",Formler!$B$1,G7*1.5)," ") ->  | J7: =IF(F7>$S$1,HOUR(F7-$S$1)+MINUTE(F7-$S$1)/60," ") ->  | K7: =IF(WEEKDAY(D7,2)=6,IF(F7>$V$1,(HOUR(F7-$V$1)+MINUTE(F7-$V$1)/60)," ")," ") ->  | M7: =IF(I7="ja",(IF(N7>=0,$I$1-(N7*0.75),$V$5+0))," ") -> 
D8: 2020-08-03 | H8: =IF(C8="ja",IF(G8=" ",Formler!$B$1,G8*1.5)," ") -> 
A9: Funktionstillæg | B9: =Juli!B9 -> 10 | D9: 2020-08-04 | H9: =IF(C9="ja",IF(G9=" ",Formler!$B$1,G9*1.5)," ") -> 
D10: 2020-08-05 | H10: =IF(C10="ja",IF(G10=" ",Formler!$B$1,G10*1.5)," ") -> 
A11: Kvallifikationstillæg | B11: =Juli!B11 -> 10 | D11: 2020-08-06 | H11: =IF(C11="ja",IF(G11=" ",Formler!$B$1,G11*1.5)," ") -> 
D12: 2020-08-07 | H12: =IF(C12="ja",IF(G12=" ",Formler!$B$1,G12*1.5)," ") -> 
A13: Grundtillæg | B13: =Juli!B13 -> 10 | D13: 2020-08-08 | H13: =IF(C13="ja",IF(G13=" ",Formler!$B$1,G13*1.5)," ") -> 
D14: 2020-08-09 | H14: =IF(C14="ja",IF(G14=" ",Formler!$B$1,G14*1.5)," ") -> 
A15: Ekstra timer _____ | B15: =T37*Formler!B7 -> 0 | D15: 2020-08-10 | H15: =IF(C15="ja",IF(G15=" ",Formler!$B$1,G15*1.5)," ") -> 
D16: 2020-08-11 | H16: =IF(C16="ja",IF(G16=" ",Formler!$B$1,G16*1.5)," ") -> 
A17: Aftentillæg | B17: =+J37*Formler!B9 -> 0 | D17: 2020-08-12 | H17: =IF(C17="ja",IF(G17=" ",Formler!$B$1,G17*1.5)," ") -> 
D18: 2020-08-13 | H18: =IF(C18="ja",IF(G18=" ",Formler!$B$1,G18*1.5)," ") -> 
A19: Lørdagstillæg | B19: =+K37*Formler!B10 -> 0 | D19: 2020-08-14 | H19: =IF(C19="ja",IF(G19=" ",Formler!$B$1,G19*1.5)," ") -> 
D20: 2020-08-15 | H20: =IF(C20="ja",IF(G20=" ",Formler!$B$1,G20*1.5)," ") -> 
A21: Fradrag | D21: 2020-08-16 | H21: =IF(C21="ja",IF(G21=" ",Formler!$B$1,G21*1.5)," ") -> 
D22: 2020-08-17 | H22: =IF(C22="ja",IF(G22=" ",Formler!$B$1,G22*1.5)," ") -> 
A23: Uniformsgodtgørelse | B23: =P38*Formler!B11 -> 279.0608648 | D23: 2020-08-18 | H23: =IF(C23="ja",IF(G23=" ",Formler!$B$1,G23*1.5)," ") -> 
D24: 2020-08-19 | H24: =IF(C24="ja",IF(G24=" ",Formler!$B$1,G24*1.5)," ") -> 
A25: Sundhedsforsikring | B25: =Juli!B25 -> 45.39 | D25: 2020-08-20 | H25: =IF(C25="ja",IF(G25=" ",Formler!$B$1,G25*1.5)," ") -> 
D26: 2020-08-21 | H26: =IF(C26="ja",IF(G26=" ",Formler!$B$1,G26*1.5)," ") -> 
A27: Multimedie | D27: 2020-08-22 | H27: =IF(C27="ja",IF(G27=" ",Formler!$B$1,G27*1.5)," ") -> 
D28: 2020-08-23 | H28: =IF(C28="ja",IF(G28=" ",Formler!$B$1,G28*1.5)," ") -> 
A29: Fradrag kost | B29: =IF(L42/Formler!B16>=37,300,IF(L42/Formler!B16>=20,225,IF(L42/Formler!B16<=19,150))) -> 150 | D29: 2020-08-24 | H29: =IF(C29="ja",IF(G29=" ",Formler!$B$1,G29*1.5)," ") -> 
D30: 2020-08-25 | H30: =IF(C30="ja",IF(G30=" ",Formler!$B$1,G30*1.5)," ") -> 
A31: Fradrag gavekasse | B31: =Juli!B31 -> 50 | D31: 2020-08-26 | H31: =IF(C31="ja",IF(G31=" ",Formler!$B$1,G31*1.5)," ") -> 
D32: 2020-08-27 | H32: =IF(C32="ja",IF(G32=" ",Formler!$B$1,G32*1.5)," ") -> 
A33: Bagvagt | D33: 2020-08-28 | H33: =IF(C33="ja",IF(G33=" ",Formler!$B$1,G33*1.5)," ") -> 
D34: 2020-08-29 | H34: =IF(C34="ja",IF(G34=" ",Formler!$B$1,G34*1.5)," ") -> 
A35: Kørsel i km | D35: 2020-08-30 | H35: =IF(C35="ja",IF(G35=" ",Formler!$B$1,G35*1.5)," ") -> 
D36: 2020-08-31 | G36: =IF(F36>0,HOUR(F36-E36)+MINUTE(F36-E36)/60," ") ->  | H36: =IF(C36="ja",IF(G36=" ",Formler!$B$1,G36*1.5)," ") -> 
G37: =SUM(G6:G36) -> 0 | H37: =SUM(H6:H36) -> 0 | J37: =SUM(J6:J36) -> 0 | K37: 0 | L37: 0 | M37: 0 | N37: 0 | O37: 0 | P37: 0 | Q37: 0 | R37: =SUM(R6:R36) -> 0 | S37: =SUM(S6:S36) -> 0 | T37: 0
D38: Timetal d.m. | G38: =G37+O37+P37+Q37+M37+R37+S37 -> 0 | M38: Fast timetal | P38: =Juli!P38 -> 151.6635135
D39: Oppe | G39: =N37 -> 0 | M39: Gl.saldo | P39: =Juli!P40 -> -1410.065135
D40: Aften fra saldo | G40: =J37/12+Juli!G40 -> 0 | M40: Ny saldo | P40: =+L42-P38+P39 -> -1561.728649
D41: Nat | G41: =M37 -> 0 | M41: Ferie saldo | Q41: =Juli!S41 -> 10 | R41: Ny | S41: =Q41-(P37/Formler!B1)+0 -> 10
D42: Søn/helligdage | G42: =L37+H37 -> 0 | K42: I alt | L42: =SUM(G38+G39+G40+G41+G42) -> 0 | M42: Ferie/frisaldo i dage | Q42: =Juli!S42 -> 10 | R42: Ny | S42: =Q42-(R37/Formler!B1) -> 10
M43: Oms/sen saldo i dage | Q43: =Juli!S43 -> 2 | R43: Ny | S43: =Q43-(S37/Formler!B1) -> 2

Sheet September
G1: AFS Nat: | I1: 6 | K1: Hvis haft nat, skriv ja i kolonnen. | R1: Aften: | S1: 17:00:00 | U1: Lørdag | V1: 11:00:00 | W1: 23:00:00
U2: Søn/hellig | V2: 07:00:00 | W2: 23:00:00
A3: Lønberegning: | D3: Navn: | E3: =August!E3 -> Poul Prøvesen | M3: Måned: | O3: September | R3: År: | S3: 2020
C4: Helligd. | D4: Dato | E4: Mødt | F4: Gået | G4: Timer | H4: Hellig | I4: Nat | J4: Aften | K4: Lørdag | L4: Søndag | M4: AFS | N4: Op- | O4: Syg | P4: Ferie | Q4: Kur- | R4: Ferie | S4: Oms. | T4: Ekstra | U4: Bemærkning
A5: Månedsløn | B5: =August!B5 -> 99000 | E5: kl. | F5: kl. | H5: dag | J5: 17-23 | K5: 11-23 | L5: 7-23 | M5: nat | N5: pe | P5: timer | Q5: sus | R5: Fri | S5: senior | T5: timer
D6: 2020-09-01 | G6: =(IF(AND(E6>0,F6>0),HOUR(F6-E6)+MINUTE(F6-E6)/60," ")) ->  | H6: =IF(C6="ja",IF(G6=" ",Formler!$B$1,G6*1.5)," ") ->  | J6: =IF(F6>$S$1,HOUR(F6-$S$1)+MINUTE(F6-$S$1)/60," ") ->  | K6: =IF(WEEKDAY(D6,2)=6,IF(F6>$V$1,(HOUR(F6-$V$1)+MINUTE(F6-$V$1)/60)," ")," ") ->  | L6: =IF(WEEKDAY(D6,2)=7,IF(E6>0,(HOUR(F6-E6)+MINUTE(F6-E6)/60)/2," ")," ") ->  | M6: =IF(I6="ja",(IF(N6>=0,$I$1-(N6*0.75),$V$5+0))," ") -> 
A7: Stillingstillæg | B7: =August!B7 -> 10 | D7: 2020-09-02 | H7: =IF(C7="ja",IF(G7=" ",Formler!$B$1,G7*1.5)," ") ->  | J7: =IF(F7>$S$1,HOUR(F7-$S$1)+MINUTE(F7-$S$1)/60," ") ->  | K7: =IF(WEEKDAY(D7,2)=6,IF(F7>$V$1,(HOUR(F7-$V$1)+MINUTE(F7-$V$1)/60)," ")," ") ->  | M7: =IF(I7="ja",(IF(N7>=0,$I$1-(N7*0.75),$V$5+0))," ") -> 
D8: 2020-09-03 | H8: =IF(C8="ja",IF(G8=" ",Formler!$B$1,G8*1.5)," ") -> 
A9: Funktionstillæg | B9: =August!B9 -> 10 | D9: 2020-09-04 | H9: =IF(C9="ja",IF(G9=" ",Formler!$B$1,G9*1.5)," ") -> 
D10: 2020-09-05 | H10: =IF(C10="ja",IF(G10=" ",Formler!$B$1,G10*1.5)," ") -> 
A11: Kvallifikationstillæg | B11: =August!B11 -> 10 | D11: 2020-09-06 | H11: =IF(C11="ja",IF(G11=" ",Formler!$B$1,G11*1.5)," ") -> 
D12: 2020-09-07 | H12: =IF(C12="ja",IF(G12=" ",Formler!$B$1,G12*1.5)," ") -> 
A13: Grundtillæg | B13: =August!B13 -> 10 | D13: 2020-09-08 | H13: =IF(C13="ja",IF(G13=" ",Formler!$B$1,G13*1.5)," ") -> 
D14: 2020-09-09 | H14: =IF(C14="ja",IF(G14=" ",Formler!$B$1,G14*1.5)," ") -> 
A15: Ekstra timer _____ | B15: =T37*Formler!B7 -> 0 | D15: 2020-09-10 | H15: =IF(C15="ja",IF(G15=" ",Formler!$B$1,G15*1.5)," ") -> 
D16: 2020-09-11 | H16: =IF(C16="ja",IF(G16=" ",Formler!$B$1,G16*1.5)," ") -> 
A17: Aftentillæg | B17: =+J37*Formler!B9 -> 0 | D17: 2020-09-12 | H17: =IF(C17="ja",IF(G17=" ",Formler!$B$1,G17*1.5)," ") -> 
D18: 2020-09-13 | H18: =IF(C18="ja",IF(G18=" ",Formler!$B$1,G18*1.5)," ") -> 
A19: Lørdagstillæg | B19: =+K37*Formler!B10 -> 0 | D19: 2020-09-14 | H19: =IF(C19="ja",IF(G19=" ",Formler!$B$1,G19*1.5)," ") -> 
D20: 2020-09-15 | H20: =IF(C20="ja",IF(G20=" ",Formler!$B$1,G20*1.5)," ") -> 
A21: Fradrag | D21: 2020-09-16 | H21: =IF(C21="ja",IF(G21=" ",Formler!$B$1,G21*1.5)," ") -> 
D22: 2020-09-17 | H22: =IF(C22="ja",IF(G22=" ",Formler!$B$1,G22*1.5)," ") -> 
A23: Uniformsgodtgørelse | B23: =P38*Formler!B11 -> 279.0608648 | D23: 2020-09-18 | H23: =IF(C23="ja",IF(G23=" ",Formler!$B$1,G23*1.5)," ") -> 
D24: 2020-09-19 | H24: =IF(C24="ja",IF(G24=" ",Formler!$B$1,G24*1.5)," ") -> 
A25: Sundhedsforsikring | B25: =August!B25 -> 45.39 | D25: 2020-09-20 | H25: =IF(C25="ja",IF(G25=" ",Formler!$B$1,G25*1.5)," ") -> 
D26: 2020-09-21 | H26: =IF(C26="ja",IF(G26=" ",Formler!$B$1,G26*1.5)," ") -> 
A27: Multimedie | D27: 2020-09-22 | H27: =IF(C27="ja",IF(G27=" ",Formler!$B$1,G27*1.5)," ") -> 
D28: 2020-09-23 | H28: =IF(C28="ja",IF(G28=" ",Formler!$B$1,G28*1.5)," ") -> 
A29: Fradrag kost | B29: =IF(L42/Formler!B16>=37,300,IF(L42/Formler!B16>=20,225,IF(L42/Formler!B16<=19,150))) -> 150 | D29: 2020-09-24 | H29: =IF(C29="ja",IF(G29=" ",Formler!$B$1,G29*1.5)," ") -> 
D30: 2020-09-25 | H30: =IF(C30="ja",IF(G30=" ",Formler!$B$1,G30*1.5)," ") -> 
A31: Fradrag gavekasse | B31: =August!B31 -> 50 | D31: 2020-09-26 | H31: =IF(C31="ja",IF(G31=" ",Formler!$B$1,G31*1.5)," ") -> 
D32: 2020-09-27 | H32: =IF(C32="ja",IF(G32=" ",Formler!$B$1,G32*1.5)," ") -> 
A33: Bagvagt | D33: 2020-09-28 | H33: =IF(C33="ja",IF(G33=" ",Formler!$B$1,G33*1.5)," ") -> 
D34: 2020-09-29 | H34: =IF(C34="ja",IF(G34=" ",Formler!$B$1,G34*1.5)," ") -> 
A35: Kørsel i km | D35: 2020-09-30 | H35: =IF(C35="ja",IF(G35=" ",Formler!$B$1,G35*1.5)," ") -> 
G36: =IF(F36>0,HOUR(F36-E36)+MINUTE(F36-E36)/60," ") ->  | H36: =IF(C36="ja",IF(G36=" ",Formler!$B$18,G36*1.5)," ") -> 
G37: =SUM(G6:G36) -> 0 | H37: =SUM(H6:H36) -> 0 | J37: =SUM(J6:J36) -> 0 | K37: 0 | L37: 0 | M37: 0 | N37: 0 | O37: 0 | P37: 0 | Q37: 0 | R37: =SUM(R6:R36) -> 0 | S37: =SUM(S6:S36) -> 0 | T37: 0
D38: Timetal d.m. | G38: =G37+O37+P37+Q37+M37+R37+S37 -> 0 | M38: Fast timetal | P38: =August!P38 -> 151.6635135
D39: Oppe | G39: =N37 -> 0 | M39: Gl.saldo | P39: =August!P40 -> -1561.728649
D40: Aften fra saldo | G40: =J37/12+August!G40 -> 0 | M40: Ny saldo | P40: =+L42-P38+P39 -> -1713.392162
D41: Nat | G41: =M37 -> 0 | M41: Ferie saldo | Q41: =August!S41 -> 10 | R41: Ny | S41: =Q41-(P37/Formler!B1)+0 -> 10
D42: Søn/helligdage | G42: =L37+H37 -> 0 | K42: I alt | L42: =SUM(G38+G39+G40+G41+G42) -> 0 | M42: Ferie/frisaldo i dage | Q42: =August!S42 -> 10 | R42: Ny | S42: =Q42-(R37/Formler!B1) -> 10
M43: Oms/sen saldo i dage | Q43: =August!S43 -> 2 | R43: Ny | S43: =Q43-(S37/Formler!B1) -> 2
